Workbook

Sheet Summary
A3: Paragon Mortgages (No.15) PLC
A5: Information as at the Principal Determination Date | B5: 2007-11-30 | C5: 2008-02-29 | D5: 2008-05-30 | E5: 2008-08-31 | F5: 2008-11-28 | G5: 2009-02-27 | H5: 2009-05-29 | I5: 2009-08-28 | J5: 2009-11-30 | K5: 2010-02-26 | L5: 2010-05-28 | M5: 2010-08-31 | N5: 2010-11-30 | O5: 2011-02-28 | P5: 2011-05-31 | Q5: 2011-08-31 | R5: 2011-11-30 | S5: 2012-02-29 | T5: 2012-05-31 | U5: 2012-08-31 | V5: 2012-11-30 | W5: 2013-02-28 | X5: 2013-05-31 | Y5: 2013-08-30 | Z5: 2013-11-29 | AA5: 2014-02-28 | AB5: 2014-05-30 | AC5: 2014-08-29 | AD5: 2014-11-28 | AE5: 2015-02-27 | AF5: 2015-05-29 | AG5: 2015-08-28 | AH5: 2015-11-30 | AI5: 2016-02-29 | AJ5: 2016-05-31 | AK5: 2016-08-31 | AL5: 2016-11-30 | AM5: 2017-02-28 | AN5: 2017-05-31 | AO5: 2017-08-31 | AP5: 2017-11-30 | AQ5: 2018-02-28 | AR5: 2018-05-31 | AS5: 2018-08-31 | AT5: 2018-11-30 | AU5: 2019-02-28 | AV5: 2019-05-31 | AW5: 2019-08-30 | AX5: 2019-11-29 | AY5: 2020-02-28 | AZ5: 2020-05-29 | BA5: 2020-08-28 | BB5: 2020-11-30
A6: Mortgage Asset Balance | B6: 989554 | C6: 984753 | D6: 977183 | E6: 929027 | F6: 904807 | G6: 888653 | H6: 880910 | I6: 876625 | J6: 871356 | K6: 866464 | L6: 861437 | M6: 854475 | N6: 850414 | O6: 847171 | P6: 843152 | Q6: 838515 | R6: 832471 | S6: 827816 | T6: 824172 | U6: 818565 | V6: 813179 | W6: 810155 | X6: 804997 | Y6: 798417 | Z6: 790007 | AA6: 784952 | AB6: 777801 | AC6: 768831 | AD6: 761158 | AE6: 753226.4922 | AF6: 745360.2905 | AG6: 736256.4184 | AH6: 727208.3515 | AI6: 718947.9165 | AJ6: 703690.3319 | AK6: 692657.1693 | AL6: 682963.8681 | AM6: 671860 | AN6: 658726.0579 | AO6: 645126.1648 | AP6: 633581.0276 | AQ6: 624965.7403 | AR6: 614617.8603 | AS6: 602398.0957 | AT6: 592301.6871 | AU6: 580627 | AV6: 569838.7142 | AW6: 559270.802 | AX6: 547234.0643 | AY6: 537520.8623 | AZ6: 528198.4676 | BA6: 521680.8505 | BB6: 0
A7: Total Notes | B7: =SUM(B8:B14) -> 989554 | C7: =SUM(C8:C14) -> 984753 | D7: =SUM(D8:D14)-1 -> 977183 | E7: =SUM(E8:E14) -> 929027 | F7: =SUM(F8:F14) -> 904807 | G7: =SUM(G8:G14) -> 888653 | H7: =SUM(H8:H14) -> 880910 | I7: =SUM(I8:I14) -> 876625 | J7: =SUM(J8:J14)-1 -> 871356 | K7: =SUM(K8:K14)-1 -> 866464 | L7: =SUM(L8:L14) -> 861437 | M7: =SUM(M8:M14)-1 -> 854475 | N7: =SUM(N8:N14)+1 -> 850414 | O7: =SUM(O8:O14) -> 847171 | P7: =SUM(P8:P14)+1 -> 843152 | Q7: =SUM(Q8:Q14)+1 -> 838515 | R7: =SUM(R8:R14)+1 -> 832471 | S7: =SUM(S8:S14) -> 827816 | T7: =SUM(T8:T14) -> 824172 | U7: =SUM(U8:U14) -> 818565 | V7: =SUM(V8:V14) -> 813179 | W7: =SUM(W8:W14) -> 810155 | X7: =SUM(X8:X14)+1 -> 804997 | Y7: =SUM(Y8:Y14)-1 -> 798417 | Z7: =SUM(Z8:Z14) -> 790007 | AA7: =SUM(AA8:AA14)-1 -> 784952 | AB7: =SUM(AB8:AB14) -> 777801 | AC7: =SUM(AC8:AC14) -> 768831 | AD7: =SUM(AD8:AD14) -> 761158 | AE7: =SUM(AE8:AE14) -> 753226 | AF7: =SUM(AF8:AF14)-1 -> 745360 | AG7: =SUM(AG8:AG14)-1 -> 736256 | AH7: =SUM(AH8:AH14)-1 -> 727208 | AI7: =SUM(AI8:AI14)+1 -> 718948 | AJ7: =SUM(AJ8:AJ14)-1 -> 703690 | AK7: =SUM(AK8:AK14)-1 -> 692657 | AL7: =SUM(AL8:AL14)-1 -> 682964 | AM7: =SUM(AM8:AM14) -> 671860 | AN7: =SUM(AN8:AN14) -> 658726 | AO7: =SUM(AO8:AO14) -> 645126 | AP7: =SUM(AP8:AP14) -> 633581 | AQ7: =SUM(AQ8:AQ14)-1 -> 624966 | AR7: =SUM(AR8:AR14) -> 614618 | AS7: 602398 | AT7: 592302 | AU7: 580627 | AV7: 569839 | AW7: 559271 | AX7: =SUM(AX8:AX14) -> 547234 | AY7: =SUM(AY8:AY14)+1 -> 537521 | AZ7: =SUM(AZ8:AZ14) -> 528198 | BA7: =SUM(BA8:BA14)-1 -> 521681 | BB7: =SUM(BB8:BB14) -> 0
A8: Class A1 Notes | B8: 486244 | C8: 483463 | D8: 479079 | E8: 451187 | F8: 437158 | G8: 427801 | H8: 423316 | I8: 420835 | J8: 417783 | K8: 414949 | L8: 412037 | M8: 408005 | N8: 405652 | O8: 403774 | P8: 401446 | Q8: 398760 | R8: 395259 | S8: 392563 | T8: 390453 | U8: 387205 | V8: 384086 | W8: 382334 | X8: 379346 | Y8: 375535 | Z8: 370664 | AA8: 367736 | AB8: 363594 | AC8: 358398 | AD8: 353954 | AE8: 349360 | AF8: 344804 | AG8: 339531 | AH8: 334290 | AI8: 329505 | AJ8: 320668 | AK8: 314278 | AL8: 308663 | AM8: 302231 | AN8: 294624 | AO8: 286747 | AP8: 280060 | AQ8: 275070 | AR8: 269076 | AS8: 261998 | AT8: 256150 | AU8: 249388 | AV8: 243139 | AW8: 237018 | AX8: 230046 | AY8: 224420 | AZ8: 219021 | BA8: 215246 | BB8: 0
A9: Class A2a Notes | B9: 206650 | C9: 205468 | D9: 203605 | E9: 191750 | F9: 185788 | G9: 181812 | H9: 179906 | I9: 178851 | J9: 177554 | K9: 176350 | L9: 175112 | M9: 173399 | N9: 172399 | O9: 171601 | P9: 170611 | Q9: 169470 | R9: 167982 | S9: 166836 | T9: 165939 | U9: 164559 | V9: 163233 | W9: 162489 | X9: 161219 | Y9: 159600 | Z9: 157529 | AA9: 156285 | AB9: 154525 | AC9: 152317 | AD9: 150428 | AE9: 148475 | AF9: 146539 | AG9: 144298 | AH9: 142071 | AI9: 140037 | AJ9: 136282 | AK9: 133566 | AL9: 131180 | AM9: 128446 | AN9: 125213 | AO9: 121865 | AP9: 119023 | AQ9: 116903 | AR9: 114355 | AS9: 111347 | AT9: 108862 | AU9: 105988 | AV9: 103333 | AW9: 100731 | AX9: 97768 | AY9: 95377 | AZ9: 93082 | BA9: 91478 | BB9: 0
A10: Class A2b Notes | B10: 73661 | C10: 73240 | D10: 72576 | E10: 68350 | F10: 66225 | G10: 64808 | H10: 64128 | I10: 63752 | J10: 63290 | K10: 62861 | L10: 62420 | M10: 61809 | N10: 61452 | O10: 61168 | P10: 60815 | Q10: 60408 | R10: 59878 | S10: 59470 | T10: 59150 | U10: 58658 | V10: 58185 | W10: 57920 | X10: 57467 | Y10: 56890 | Z10: 56152 | AA10: 55709 | AB10: 55081 | AC10: 54294 | AD10: 53621 | AE10: 52925 | AF10: 52235 | AG10: 51436 | AH10: 50642 | AI10: 49917 | AJ10: 48579 | AK10: 47610 | AL10: 46760 | AM10: 45786 | AN10: 44633 | AO10: 43440 | AP10: 42427 | AQ10: 41671 | AR10: 40763 | AS10: 39691 | AT10: 38805 | AU10: 37781 | AV10: 36834 | AW10: 35907 | AX10: 34851 | AY10: 33998 | AZ10: 33180 | BA10: 32609 | BB10: 0
A11: Class A2c Notes | B11: 72937 | C11: 72520 | D11: 71862 | E11: 67678 | F11: 65574 | G11: 64170 | H11: 63498 | I11: 63125 | J11: 62668 | K11: 62243 | L11: 61806 | M11: 61201 | N11: 60848 | O11: 60566 | P11: 60217 | Q11: 59814 | R11: 59289 | S11: 58885 | T11: 58568 | U11: 58081 | V11: 57613 | W11: 57350 | X11: 56902 | Y11: 56331 | Z11: 55600 | AA11: 55161 | AB11: 54539 | AC11: 53760 | AD11: 53093 | AE11: 52404 | AF11: 51721 | AG11: 50930 | AH11: 50144 | AI11: 49426 | AJ11: 48100 | AK11: 47142 | AL11: 46300 | AM11: 45335 | AN11: 44194 | AO11: 43012 | AP11: 42009 | AQ11: 41261 | AR11: 40362 | AS11: 39300 | AT11: 38423 | AU11: 37408 | AV11: 36471 | AW11: 35553 | AX11: 34507 | AY11: 33663 | AZ11: 32853 | BA11: 32287 | BB11: 0
A12: Class B1a Notes | B12: 17000 | C12: 17000 | D12: 17000 | E12: 17000 | F12: 17000 | G12: 17000 | H12: 17000 | I12: 17000 | J12: 17000 | K12: 17000 | L12: 17000 | M12: 17000 | N12: 17000 | O12: 17000 | P12: 17000 | Q12: 17000 | R12: 17000 | S12: 17000 | T12: 17000 | U12: 17000 | V12: 17000 | W12: 17000 | X12: 17000 | Y12: 17000 | Z12: 17000 | AA12: 17000 | AB12: 17000 | AC12: 17000 | AD12: 17000 | AE12: 17000 | AF12: 17000 | AG12: 17000 | AH12: 17000 | AI12: 17000 | AJ12: 17000 | AK12: 17000 | AL12: 17000 | AM12: 17000 | AN12: 17000 | AO12: 17000 | AP12: 17000 | AQ12: 17000 | AR12: 17000 | AS12: 17000 | AT12: 17000 | AU12: 17000 | AV12: 17000 | AW12: 17000 | AX12: 17000 | AY12: 17000 | AZ12: 17000 | BA12: 17000 | BB12: 0
A13: Class B1b Notes | B13: 58045 | C13: 58045 | D13: 58045 | E13: 58045 | F13: 58045 | G13: 58045 | H13: 58045 | I13: 58045 | J13: 58045 | K13: 58045 | L13: 58045 | M13: 58045 | N13: 58045 | O13: 58045 | P13: 58045 | Q13: 58045 | R13: 58045 | S13: 58045 | T13: 58045 | U13: 58045 | V13: 58045 | W13: 58045 | X13: 58045 | Y13: 58045 | Z13: 58045 | AA13: 58045 | AB13: 58045 | AC13: 58045 | AD13: 58045 | AE13: 58045 | AF13: 58045 | AG13: 58045 | AH13: 58045 | AI13: 58045 | AJ13: 58045 | AK13: 58045 | AL13: 58045 | AM13: 58045 | AN13: 58045 | AO13: 58045 | AP13: 58045 | AQ13: 58045 | AR13: 58045 | AS13: 58045 | AT13: 58045 | AU13: 58045 | AV13: 58045 | AW13: 58045 | AX13: 58045 | AY13: 58045 | AZ13: 58045 | BA13: 58045 | BB13: 0
A14: Class C1b Notes | B14: 75017 | C14: 75017 | D14: 75017 | E14: 75017 | F14: 75017 | G14: 75017 | H14: 75017 | I14: 75017 | J14: 75017 | K14: 75017 | L14: 75017 | M14: 75017 | N14: 75017 | O14: 75017 | P14: 75017 | Q14: 75017 | R14: 75017 | S14: 75017 | T14: 75017 | U14: 75017 | V14: 75017 | W14: 75017 | X14: 75017 | Y14: 75017 | Z14: 75017 | AA14: 75017 | AB14: 75017 | AC14: 75017 | AD14: 75017 | AE14: 75017 | AF14: 75017 | AG14: 75017 | AH14: 75017 | AI14: 75017 | AJ14: 75017 | AK14: 75017 | AL14: 75017 | AM14: 75017 | AN14: 75017 | AO14: 75017 | AP14: 75017 | AQ14: 75017 | AR14: 75017 | AS14: 75017 | AT14: 75017 | AU14: 75017 | AV14: 75017 | AW14: 75017 | AX14: 75017 | AY14: 75017 | AZ14: 75017 | BA14: 75017 | BB14: 0
A15: Class B and C Notes as a % of the Total Notes | B15: =SUM(B12:B14)/B7 -> 0.1516460951 | C15: 0.1523854205 | D15: 0.1535659134 | E15: 0.1615259836 | F15: 0.1658497337 | G15: 0.1688645624 | H15: 0.1703488438 | I15: 0.17118152 | J15: 0.1722166371 | K15: 0.1731889611 | L15: 0.1741996223 | M15: 0.1756189473 | N15: 0.1764575842 | O15: 0.1771330699 | P15: 0.1779773991 | Q15: 0.1789616167 | R15: 0.180260934 | S15: =SUM(S12:S14)/S7 -> 0.1812745828 | T15: 0.1820760715 | U15: 0.1833232547 | V15: 0.1845374758 | W15: 0.1852262839 | X15: 0.1864131171 | Y15: =SUM(Y12:Y14)/Y7 -> 0.1879494049 | Z15: 0.1899502156 | AA15: 0.191173473 | AB15: 0.1929310968 | AC15: 0.1951820361 | AD15: 0.1971496063 | AE15: =SUM(AE12:AE14)/AE7 -> 0.1992257304 | AF15: 0.2013282172 | AG15: =SUM(AG12:AG14)/AG7 -> 0.2038176938 | AH15: 0.2063536155 | AI15: =SUM(AI12:AI14)/AI7 -> 0.208724414 | AJ15: 0.2132501528 | AK15: =SUM(AK12:AK14)/AK7 -> 0.2166469118 | AL15: 0.2197216837 | AM15: =SUM(AM12:AM14)/AM7 -> 0.2233530795 | AN15: 0.2278064021 | AO15: =SUM(AO12:AO14)/AO7 -> 0.2326088237 | AP15: 0.2368473802 | AQ15: =SUM(AQ12:AQ14)/AQ7 -> 0.2401122621 | AR15: 0.244154906 | AS15: =SUM(AS12:AS14)/AS7 -> 0.2491077328 | AT15: 0.2533538634 | AU15: =SUM(AU12:AU14)/AU7 -> 0.2584481948 | AV15: 0.263341049 | AW15: =SUM(AW12:AW14)/AW7 -> 0.2683171486 | AX15: 0.2742190726 | AY15: =SUM(AY12:AY14)/AY7 -> 0.279174209 | AZ15: 0.2841017952 | BA15: =SUM(BA12:BA14)/BA7 -> 0.2876508824 | BB15: 0
A16: Overall Lifetime Redemption Rate | B16: 0.039 | C16: 0.0365 | D16: 0.038 | E16: 0.0715 | F16: 0.0771 | G16: 0.0761 | H16: 0.0711 | I16: 0.0657 | J16: 0.0615 | K16: 0.058 | L16: 0.0549 | M16: 0.0531 | N16: 0.0507 | O16: 0.0483 | P16: 0.0465 | Q16: 0.0451 | R16: 0.0442 | S16: 0.043 | T16: 0.0417 | U16: 0.041 | V16: 0.0403 | W16: 0.0393 | X16: 0.0387 | Y16: 0.0385 | Z16: 0.0386 | AA16: 0.0381 | AB16: 0.0381 | AC16: 0.0383 | AD16: 0.0384 | AE16: 0.0385 | AF16: 0.0386 | AG16: 0.039 | AH16: 0.0393 | AI16: 0.0395 | AJ16: 0.0407 | AK16: 0.0413 | AL16: 0.0417 | AM16: 0.0422 | AN16: 0.0431 | AO16: 0.044 | AP16: 0.0447 | AQ16: 0.0449 | AR16: 0.0454 | AS16: 0.0462 | AT16: 0.0466 | AU16: 0.0472 | AV16: 0.0478 | AW16: 0.0483 | AX16: 0.049 | AY16: 0.0494 | AZ16: 0.0497 | BA16: 0.0497 | BB16: 1
A17: Quarterly Redemption Rate | B17: 0.0176 | C17: 0.0081 | D17: 0.0107 | E17: 0.0509 | F17: 0.0269 | G17: 0.0182 | H17: 0.0094 | I17: 0.0056 | J17: 0.0063 | K17: 0.006 | L17: 0.0063 | M17: 0.0083 | N17: 0.0048 | O17: 0.0039 | P17: 0.0049 | Q17: 0.0055 | R17: 0.0072 | S17: 0.0056 | T17: 0.0044 | U17: 0.0068 | V17: 0.0066 | W17: 0.0038 | X17: 0.0064 | Y17: 0.0084 | Z17: 0.0106 | AA17: 0.0065 | AB17: 0.0094 | AC17: 0.0115 | AD17: 0.0105 | AE17: 0.0106 | AF17: 0.0108 | AG17: 0.0125 | AH17: 0.0128 | AI17: 0.0114 | AJ17: 0.0214 | AK17: 0.0158 | AL17: 0.0142 | AM17: 0.0163 | AN17: 0.0197 | AO17: 0.0207 | AP17: 0.0179 | AQ17: 0.0141 | AR17: 0.0166 | AS17: 0.0206 | AT17: 0.0169 | AU17: 0.0197 | AV17: 0.0186 | AW17: 0.0185 | AX17: 0.0215 | AY17: 0.0177 | AZ17: 0.0173 | BA17: 0.0123 | BB17: 1
A18: Further Advances released in the quarter | B18: 2283 | C18: 1757 | D18: 2580 | E18: 1137 | F18: 492 | G18: 124 | H18: 483 | I18: 536 | J18: 241 | K18: 335 | L18: 415 | M18: 183 | N18: 44 | O18: 39 | P18: 42 | Q18: 26 | R18: 0 | S18: 0 | T18: 25 | U18: 0 | V18: 0 | W18: 21 | X18: 0 | Y18: 209 | Z18: 59 | AA18: 100 | AB18: 205 | AC18: 0 | AD18: 391 | AE18: 147 | AF18: 298 | AG18: 177 | AH18: 393 | AI18: 46 | AJ18: 100 | AK18: 90 | AL18: 158 | AM18: 45 | AN18: 75 | AO18: 56 | AP18: 0 | AQ18: 294 | AR18: 50 | AS18: 449 | AT18: 58 | AU18: 0 | AV18: 0 | AW18: 0 | AX18: 0 | AY18: 0 | AZ18: 0 | BA18: 0 | BB18: 0
A19: First Loss Fund Balance | B19: 19022 | C19: 19022 | D19: 19022 | E19: 19022 | F19: 19022 | G19: 19022 | H19: 19022 | I19: 19022 | J19: 19022 | K19: 19022 | L19: 19022 | M19: 19022 | N19: 19022 | O19: 19022 | P19: 19022 | Q19: 19022 | R19: 19022 | S19: 19022 | T19: 19022 | U19: 19022 | V19: 19022 | W19: 19022 | X19: 19022 | Y19: 19022 | Z19: 19022 | AA19: 19022 | AB19: 19022 | AC19: 19022 | AD19: 19022 | AE19: 19022 | AF19: 19022 | AG19: 19022 | AH19: 19022 | AI19: 19022 | AJ19: 19022 | AK19: 19022 | AL19: 19022 | AM19: 19022 | AN19: 19022 | AO19: 19022 | AP19: 19022 | AQ19: 19022 | AR19: 19022 | AS19: 19022 | AT19: 19022 | AU19: 19022 | AV19: 19022 | AW19: 19022 | AX19: 19022 | AY19: 19022 | AZ19: 19022 | BA19: 19022 | BB19: 0
A20: First Loss Fund as a % of the Mortgages | B20: =+B19/B6 -> 0.01922280138 | C20: 0.01931651896 | D20: 0.01946615936 | E20: 0.02047518533 | F20: 0.02102326795 | G20: 0.02140543047 | H20: 0.02159357937 | I20: 0.02169913019 | J20: 0.02183034259 | K20: 0.0219535953 | L20: 0.02208170766 | M20: 0.02226162263 | N20: 0.02236792903 | O20: 0.02245355424 | P20: 0.0225605822 | Q20: 0.02268534254 | R20: 0.02285004523 | S20: =+S19/S6 -> 0.02297853629 | T20: 0.02308013376 | U20: 0.02323822787 | V20: 0.02339214367 | W20: 0.02347945763 | X20: 0.02362990173 | Y20: =+Y19/Y6 -> 0.02382464301 | Z20: 0.02407826766 | AA20: 0.02423332892 | AB20: 0.02445612695 | AC20: 0.02474145814 | AD20: 0.02499086918 | AE20: =+AE19/AE6 -> 0.02525402412 | AF20: 0.02552054388 | AG20: =+AG19/AG6 -> 0.02583610754 | AH20: 0.02615756538 | AI20: =+AI19/AI6 -> 0.02645810574 | AJ20: 0.02703177682 | AK20: =+AK19/AK6 -> 0.02746235922 | AL20: 0.02785213229 | AM20: =+AM19/AM6 -> 0.02831244605 | AN20: 0.02887695085 | AO20: =+AO19/AO6 -> 0.02948570534 | AP20: 0.03002299496 | AQ20: =+AQ19/AQ6 -> 0.03043686841 | AR20: 0.03094931213 | AS20: =+AS19/AS6 -> 0.03157712505 | AT20: 0.03211539054 | AU20: =+AU19/AU6 -> 0.03276113581 | AV20: 0.03338137534 | AW20: =+AW19/AW6 -> 0.03401214569 | AX20: 0.034760263 | AY20: =+AY19/AY6 -> 0.03538839389 | AZ20: 0.03601297839 | BA20: =+BA19/BA6 -> 0.03646290636 | BB20: 0
A21: Opening PDL Balance | B21: 0 | C21: 0 | D21: 0 | E21: 0 | F21: 0 | G21: 0 | H21: 0 | I21: 0 | J21: 0 | K21: 0 | L21: 0 | M21: 0 | N21: 0 | O21: 0 | P21: 0 | Q21: 0 | R21: 0 | S21: 0 | T21: 0 | U21: 0 | V21: 0 | W21: 0 | X21: 0 | Y21: 0 | Z21: 0 | AA21: 0 | AB21: 0 | AC21: 0 | AD21: 0 | AE21: 0 | AF21: 0 | AG21: 0 | AH21: 0 | AI21: 0 | AJ21: 0 | AK21: 0 | AL21: 0 | AM21: 0 | AN21: 0 | AO21: 0 | AP21: 0 | AQ21: 0 | AR21: 0 | AS21: 0 | AT21: 0 | AU21: 0 | AV21: 0 | AW21: 0 | AX21: 0 | AY21: 0 | AZ21: 0 | BA21: 0 | BB21: 0
A22: Quarterly Losses | B22: =SUM(B92+B124) -> 0 | C22: 0 | D22: 0 | E22: 111 | F22: 14 | G22: 128 | H22: =SUM(H92+H124) -> 2 | I22: 95 | J22: 144 | K22: 252 | L22: 759 | M22: 297 | N22: =SUM(N92+N124) -> 300 | O22: 509 | P22: 350 | Q22: 176 | R22: 459 | S22: 253 | T22: =SUM(T92+T124) -> 31 | U22: 541 | V22: 403 | W22: 266 | X22: 550 | Y22: 306 | Z22: =SUM(Z92+Z124) -> 455 | AA22: 58 | AB22: 183 | AC22: 676 | AD22: 104 | AE22: 223 | AF22: =SUM(AF92+AF124) -> 152 | AG22: 209 | AH22: =SUM(AH92+AH124) -> 75 | AI22: -27 | AJ22: =SUM(AJ92+AJ124) -> 11 | AK22: -147 | AL22: =SUM(AL92+AL124) -> -18 | AM22: 146 | AN22: =SUM(AN92+AN124) -> 143 | AO22: 270 | AP22: =SUM(AP92+AP124) -> 361 | AQ22: 167 | AR22: =SUM(AR92+AR124) -> -23 | AS22: 149 | AT22: =SUM(AT92+AT124) -> 88 | AU22: 299 | AV22: =SUM(AV92+AV124) -> 150 | AW22: 63 | AX22: =SUM(AX92+AX124) -> 151 | AY22: 397 | AZ22: =SUM(AZ92+AZ124) -> 3 | BA22: -3 | BB22: 8
A23: Quarterly Loss Rate (annualised) | B23: =1-(1-B22/B6)^4 -> 0 | C23: 0 | D23: 0 | E23: 0.0004778337258 | F23: 6.189021558e-05 | G23: 0.0005760284265 | H23: 9.081487048e-06 | I23: 0.0004334102193 | J23: 0.0006608748105 | K23: 0.001162841548 | L23: 0.003519688487 | M23: 0.001389602683 | N23: 0.001410330926 | O23: 0.002401127778 | P23: 0.001659402471 | Q23: 0.0008393151965 | R23: 0.002203658846 | S23: =1-(1-S22/S6)^4 -> 0.001221933567 | T23: 0.000150445543 | U23: 0.0026410311 | V23: 0.001980870226 | W23: 0.00131268226 | X23: 0.002730129876 | Y23: =1-(1-Y22/Y6)^4 -> 0.001532152393 | Z23: 0.002301787548 | AA23: 0.000295526717 | AB23: 0.0009407826739 | AC23: 0.003512391961 | AD23: 0.0005464236705 | AE23: =1-(1-AE22/AE6)^4 -> 0.001183712946 | AF23: 0.0008154634081 | AG23: =1-(1-AG22/AG6)^4 -> 0.001134990576 | AH23: 0.0004124727009 | AI23: 0 | AJ23: 6.252603782e-05 | AK23: 0 | AL23: 0 | AM23: 0.000868945415 | AN23: =1-(1-AN22/AN6)^4 -> 0.0008680600389 | AO23: 0.00167304047 | AP23: =1-(1-AP22/AP6)^4 -> 0.002277161513 | AQ23: 0.001068430244 | AR23: 0 | AS23: 0.0009890119416 | AT23: =1-(1-AT22/AT6)^4 -> 0.0005941593092 | AU23: 0.002058251645 | AV23: =1-(1-AV22/AV6)^4 -> 0.001052513839 | AW23: 0.0004505105968 | AX23: =1-(1-AX22/AX6)^4 -> 0.001103275709 | AY23: 0.002951032582 | AZ23: =1-(1-AZ22/AZ6)^4 -> 2.271853953e-05 | BA23: -2.300276788e-05 | BB23: 0
A24: PDL Replenishment made during the quarter (-ve = recoveries) | B24: 0 | C24: 0 | D24: 0 | E24: 111 | F24: 14 | G24: 128 | H24: 2 | I24: 95 | J24: 144 | K24: 252 | L24: 759 | M24: 297 | N24: 300 | O24: 509 | P24: 350 | Q24: 176 | R24: 459 | S24: 253 | T24: 31 | U24: 541 | V24: 403 | W24: 266 | X24: 550 | Y24: 306 | Z24: 455 | AA24: 58 | AB24: 183 | AC24: 676 | AD24: 104 | AE24: 223 | AF24: 152 | AG24: 209 | AH24: 75 | AI24: -27 | AJ24: 11 | AK24: -147 | AL24: -18 | AM24: 146 | AN24: 143 | AO24: 270 | AP24: 361 | AQ24: 167 | AR24: -23 | AS24: 149 | AT24: 88 | AU24: 299 | AV24: 150 | AW24: 63 | AX24: 151 | AY24: 397 | AZ24: 3 | BA24: -3 | BB24: 8
A25: Outstanding PDL at end of the quarter | B25: =B21+B22-B24 -> 0 | C25: 0 | D25: 0 | E25: 0 | F25: 0 | G25: 0 | H25: 0 | I25: 0 | J25: 0 | K25: 0 | L25: 0 | M25: 0 | N25: 0 | O25: 0 | P25: 0 | Q25: 0 | R25: 0 | S25: =S21+S22-S24 -> 0 | T25: 0 | U25: 0 | V25: 0 | W25: 0 | X25: 0 | Y25: =Y21+Y22-Y24 -> 0 | Z25: 0 | AA25: 0 | AB25: 0 | AC25: 0 | AD25: 0 | AE25: =AE21+AE22-AE24 -> 0 | AF25: 0 | AG25: =AG21+AG22-AG24 -> 0 | AH25: 0 | AI25: =AI21+AI22-AI24 -> 0 | AJ25: 0 | AK25: =AK21+AK22-AK24 -> 0 | AL25: 0 | AM25: =AM21+AM22-AM24 -> 0 | AN25: 0 | AO25: =AO21+AO22-AO24 -> 0 | AP25: 0 | AQ25: =AQ21+AQ22-AQ24 -> 0 | AR25: 0 | AS25: =AS21+AS22-AS24 -> 0 | AT25: 0 | AU25: =AU21+AU22-AU24 -> 0 | AV25: 0 | AW25: =AW21+AW22-AW24 -> 0 | AX25: 0 | AY25: =AY21+AY22-AY24 -> 0 | AZ25: 0 | BA25: =BA21+BA22-BA24 -> 0 | BB25: 0
A26: Spread Trap repayment in the quarter | B26: N/A | C26: N/A | D26: N/A | E26: N/A | F26: N/A | G26: N/A | H26: N/A | I26: N/A | J26: N/A | K26: N/A | L26: N/A | M26: N/A | N26: N/A | O26: N/A | P26: N/A | Q26: N/A | R26: N/A | S26: N/A | T26: N/A | U26: N/A | V26: N/A | W26: N/A | X26: N/A | Y26: N/A | Z26: N/A | AA26: N/A | AB26: N/A | AC26: N/A | AD26: N/A | AE26: N/A | AF26: N/A | AG26: N/A | AH26: N/A | AI26: N/A | AJ26: N/A | AK26: N/A | AL26: N/A | AM26: N/A | AN26: N/A | AO26: N/A | AP26: N/A | AQ26: N/A | AR26: N/A | AS26: N/A | AT26: N/A | AU26: N/A | AV26: N/A | AW26: N/A | AX26: N/A | AY26: N/A | AZ26: N/A | BA26: N/A | BB26: N/A
A27: Spread % (WA Funding Rate less WA Interest Rate) | B27: -0.0084 | C27: -0.0118 | D27: -0.0078 | E27: -0.0035 | F27: -0.0012 | G27: 0.0156 | H27: 0.0215 | I27: 0.0192 | J27: 0.0205 | K27: 0.0205 | L27: 0.0198 | M27: 0.0183 | N27: 0.0184 | O27: 0.0181 | P27: 0.0181 | Q27: 0.0175 | R27: 0.0172 | S27: 0.0168 | T27: 0.0171 | U27: 0.015 | V27: 0.0155 | W27: 0.0162 | X27: 0.0162 | Y27: 0.0162 | Z27: 0.0161 | AA27: 0.0161 | AB27: 0.0161 | AC27: 0.0158 | AD27: 0.0158 | AE27: 0.0158 | AF27: 0.0158 | AG27: 0.0157 | AH27: 0.0156 | AI27: 0.0156 | AJ27: 0.0156 | AK27: 0.0157 | AL27: 0.0155 | AM27: 0.0156 | AN27: 0.0158 | AO27: 0.0164 | AP27: 0.016 | AQ27: 0.0163 | AR27: 0.0165 | AS27: 0.016 | AT27: 0.0163 | AU27: 0.0159 | AV27: 0.0159 | AW27: 0.0159 | AX27: 0.0157 | AY27: 0.0156 | AZ27: 0.0158004567 | BA27: 0.01556168918 | BB27: 0
A28: Total Income as a % of the Mortgages | B28: 0.0325 | C28: 0.0199 | D28: 0.0186 | E28: 0.0195 | F28: 0.0181 | G28: 0.0147 | H28: 0.0128 | I28: 0.0088 | J28: 0.0073 | K28: 0.0072 | L28: 0.0072 | M28: 0.0072 | N28: 0.0068 | O28: 0.0073 | P28: 0.0071 | Q28: 0.007 | R28: 0.0074 | S28: 0.0069 | T28: 0.0076 | U28: 0.0076 | V28: 0.0068 | W28: 0.0062 | X28: 0.0065 | Y28: 0.0065 | Z28: 0.0072 | AA28: 0.006 | AB28: 0.0059 | AC28: 0.0071 | AD28: 0.0062 | AE28: 0.0067 | AF28: 0.0067 | AG28: 0.0065 | AH28: 0.0067 | AI28: 0.0064 | AJ28: 0.0065 | AK28: 0.0069 | AL28: 0.0061 | AM28: 0.006 | AN28: 0.0057 | AO28: 0.0059 | AP28: 0.0065 | AQ28: 0.0065 | AR28: 0.0064 | AS28: 0.0067 | AT28: 0.0069 | AU28: 0.0076 | AV28: 0.0078 | AW28: 0.0065 | AX28: 0.0074 | AY28: 0.0078 | AZ28: 0.005804424385 | BA28: 0.005295362724 | BB28: 0
A29: Quarterly surplus income to the Issuer | B29: 0 | C29: 2306 | D29: 2633 | E29: 3169 | F29: 2158 | G29: 1447 | H29: 1747 | I29: 2259 | J29: 2567 | K29: 2481 | L29: 1920 | M29: 2908 | N29: 2449 | O29: 2739 | P29: 2454 | Q29: 2688 | R29: 2610 | S29: 2002 | T29: 2807 | U29: 2086 | V29: 2322 | W29: 2287 | X29: 2092 | Y29: 2340 | Z29: 2720 | AA29: 2170 | AB29: 1982 | AC29: 2323 | AD29: 2159 | AE29: 2357 | AF29: 2412 | AG29: 2162 | AH29: 2443 | AI29: 2283 | AJ29: 2195 | AK29: 2648 | AL29: 2283 | AM29: 2078 | AN29: 1782 | AO29: 1841 | AP29: 2081 | AQ29: 1956 | AR29: 1836 | AS29: 1801 | AT29: 1721 | AU29: 1795 | AV29: 1960 | AW29: 1417 | AX29: 1819 | AY29: 1665 | AZ29: 1416 | BA29: 1502 | BB29: =19022+1939 -> 20961
A30: Surplus Income as a % of the Mortgages | B30: =B29/1000000 -> 0 | C30: =C29/B6 -> 0.00233034276 | D30: 0.002673766924 | E30: 0.003242995427 | F30: 0.002322860369 | G30: 0.00159923608 | H30: 0.0019658967 | I30: 0.002564393638 | J30: 0.002928276059 | K30: 0.002847286299 | L30: 0.002215902796 | M30: 0.003375754698 | N30: 0.002866087364 | O30: 0.00322078423 | P30: 0.002896699722 | Q30: 0.00318803727 | R30: 0.00311264557 | S30: 0.002404888579 | T30: 0.003390850141 | U30: 0.002531025077 | V30: 0.002836671492 | W30: 0.002812418914 | X30: 0.00258222192 | Y30: 0.002906843131 | Z30: 0.003406741089 | AA30: 0.002746811104 | AB30: 0.002524995159 | AC30: 0.002986625114 | AD30: 0.0028081594 | AE30: 0.003096597553 | AF30: 0.003202224066 | AG30: 0.002900610654 | AH30: 0.003318137457 | AI30: =AI29/AH6 -> 0.00313940289 | AJ30: 0.003053072343 | AK30: 0.003763018873 | AL30: 0.003296002844 | AM30: 0.003042620696 | AN30: 0.002652338285 | AO30: 0.002794788483 | AP30: 0.003225725623 | AQ30: 0.003087213655 | AR30: 0.002937761035 | AS30: 0.002930276057 | AT30: 0.002856914742 | AU30: 0.003030550206 | AV30: 0.003375661139 | AW30: 0.002486668534 | AX30: 0.003252449428 | AY30: 0.003042573751 | AZ30: 0.002634316357 | BA30: 0.002843628091 | BB30: 0
A31: Payment Holidays as a percentage of the Mortgages | B31: N/A | C31: N/A | D31: N/A | E31: N/A | F31: N/A | G31: N/A | H31: N/A | I31: N/A | J31: N/A | K31: N/A | L31: N/A | M31: N/A | N31: N/A | O31: N/A | P31: N/A | Q31: N/A | R31: N/A | S31: N/A | T31: N/A | U31: N/A | V31: N/A | W31: N/A | X31: N/A | Y31: N/A | Z31: N/A | AA31: N/A | AB31: N/A | AC31: N/A | AD31: N/A | AE31: N/A | AF31: N/A | AG31: N/A | AH31: N/A | AI31: N/A | AJ31: N/A | AK31: N/A | AL31: N/A | AM31: N/A | AN31: N/A | AO31: N/A | AP31: N/A | AQ31: N/A | AR31: N/A | AS31: N/A | AT31: N/A | AU31: N/A | AV31: N/A | AW31: N/A | AX31: N/A | AY31: N/A | AZ31: 0.1875018448 | BA31: 0.06579889218 | BB31: 0
A32: Losses as a % of the Mortgages | B32: =+B22/1000000 -> 0 | C32: =+C22/B6 -> 0 | D32: 0 | E32: 0.0001135918247 | F32: 1.506952973e-05 | G32: 0.0001414666332 | H32: 2.250597252e-06 | I32: 0.000107843026 | J32: 0.0001642663625 | K32: 0.0002892044124 | L32: 0.0008759740739 | M32: 0.000344772746 | N32: 0.0003510927763 | O32: 0.0005985320091 | P32: 0.0004131397321 | Q32: 0.0002087405355 | R32: 0.0005473962899 | S32: 0.0003039144907 | T32: 3.744793529e-05 | U32: 0.0006564163791 | V32: 0.0004923249834 | W32: 0.000327111251 | X32: 0.0006788824361 | Y32: 0.0003801256402 | Z32: 0.0005698776454 | AA32: 7.341707099e-05 | AB32: 0.0002331352745 | AC32: 0.0008691169078 | AD32: 0.0001352703 | AE32: 0.0002929746518 | AF32: 0.0002017985315 | AG32: 0.0002804013075 | AH32: 0.0001018666841 | AI32: =+AI22/AH6 -> -3.712828647e-05 | AJ32: =+AJ22/AI6 -> 1.530013475e-05 | AK32: 0 | AL32: =+AL22/AK6 -> -2.598688182e-05 | AM32: 0.0002137741202 | AN32: 0.0002128419611 | AO32: 0.0004098820697 | AP32: 0.0005595804661 | AQ32: 0.0002635811249 | AR32: -3.680201732e-05 | AS32: 0.0002424270586 | AT32: 0.0001460827991 | AU32: 0.0005048103129 | AV32: 0.0002583414137 | AW32: 0.0001105575989 | AX32: 0.0002699944275 | AY32: 0.0007254665341 | AZ32: 5.581178723e-06 | BA32: -5.679683271e-06 | BB32: 1.533504631e-05
A33: Number of Properties in Possession | B33: =SUM(B90+B122) -> 0 | C33: 0 | D33: 0 | E33: 0 | F33: 0 | G33: 1 | H33: =SUM(H90+H122) -> 1 | I33: 0 | J33: 0 | K33: 0 | L33: 0 | M33: 0 | N33: =SUM(N90+N122) -> 0 | O33: 0 | P33: 0 | Q33: 0 | R33: 0 | S33: 0 | T33: =SUM(T90+T122) -> 1 | U33: 1 | V33: 1 | W33: 1 | X33: 0 | Y33: 0 | Z33: =SUM(Z90+Z122) -> 0 | AA33: 0 | AB33: 0 | AC33: 1 | AD33: 0 | AE33: 0 | AF33: 0 | AG33: 0 | AH33: 0 | AI33: 0 | AJ33: 0 | AK33: =SUM(AK90+AK122) -> 0 | AL33: 0 | AM33: =SUM(AM90+AM122) -> 0 | AN33: 0 | AO33: =SUM(AO90+AO122) -> 0 | AP33: 0 | AQ33: =SUM(AQ90+AQ122) -> 0 | AR33: 1 | AS33: =SUM(AS90+AS122) -> 1 | AT33: =SUM(AT90+AT122) -> 1 | AU33: 1 | AV33: 1 | AW33: 1 | AX33: 1 | AY33: 1 | AZ33: =SUM(AZ90+AZ122) -> 1 | BA33: 1 | BB33: =SUM(BB90+BB122) -> 0
A34: Appointment of a Receiver of Rent | B34: =+B91+B123 -> 2 | C34: 25 | D34: 18 | E34: 47 | F34: 83 | G34: 108 | H34: =+H91+H123 -> 129 | I34: 172 | J34: 171 | K34: 158 | L34: 150 | M34: 145 | N34: =+N91+N123 -> 141 | O34: 142 | P34: 140 | Q34: 143 | R34: 155 | S34: 139 | T34: =+T91+T123 -> 138 | U34: 133 | V34: 128 | W34: 121 | X34: 117 | Y34: 122 | Z34: =+Z91+Z123 -> 114 | AA34: 112 | AB34: 108 | AC34: 101 | AD34: 98 | AE34: 98 | AF34: 97 | AG34: 93 | AH34: 88 | AI34: 90 | AJ34: 86 | AK34: 83 | AL34: 80 | AM34: =+AM91+AM123 -> 79 | AN34: 74 | AO34: =+AO91+AO123 -> 72 | AP34: 67 | AQ34: =+AQ91+AQ123 -> 66 | AR34: 67 | AS34: =+AS91+AS123 -> 68 | AT34: 69 | AU34: =+AU91+AU123 -> 61 | AV34: 60 | AW34: =+AW91+AW123 -> 71 | AX34: 65 | AY34: =+AY91+AY123 -> 63 | AZ34: 63 | BA34: =+BA91+BA123 -> 60 | BB34: 0
A35: Average Number of months (Possessions) in Arrears at the Sale Date | B35: 0 | C35: 0 | D35: 0 | E35: 0 | F35: 0 | G35: 0 | H35: 0 | I35: 19.52 | J35: 0 | K35: 0 | L35: 0 | M35: 0 | N35: 0 | O35: 0 | P35: 0 | Q35: 0 | R35: 0 | S35: 0 | T35: 0 | U35: 0 | V35: 0 | W35: 0 | X35: 25.14 | Y35: 0 | Z35: 0 | AA35: 0 | AB35: 0 | AC35: 0 | AD35: 8.88 | AE35: 0 | AF35: 0 | AG35: 0 | AH35: 0 | AI35: 0 | AJ35: 0 | AK35: 0 | AL35: 0 | AM35: 0 | AN35: 0 | AO35: 0 | AP35: 0 | AQ35: 0 | AR35: 0 | AS35: 0 | AT35: 0 | AU35: 0 | AV35: 0 | AW35: 0 | AX35: 0 | AY35: 0 | AZ35: 0 | BA35: 0 | BB35: 0
A36: Average Number of months (RoR) in Arrears at the Sale Date | B36: 0 | C36: 0 | D36: 0 | E36: 1.67 | F36: 5.04 | G36: 11.98 | H36: 11.04 | I36: 16.32 | J36: 16.64 | K36: 13.29 | L36: 7.94 | M36: 13.09 | N36: 16.01 | O36: 3.37 | P36: 10.61 | Q36: 8.97 | R36: 7.41 | S36: 2.57 | T36: 9.96 | U36: 30.05 | V36: 1.65 | W36: 10.26 | X36: 3.75 | Y36: 8.95 | Z36: 1.41 | AA36: 0 | AB36: 4.4 | AC36: 6.99 | AD36: 2.17 | AE36: 0.64 | AF36: 0 | AG36: 2.48 | AH36: 1.47 | AI36: 2.14 | AJ36: 0.72 | AK36: 20.67 | AL36: 2.21 | AM36: 4.56 | AN36: 5.43 | AO36: 7.9 | AP36: 1.53 | AQ36: 2.82 | AR36: 0 | AS36: 0 | AT36: 0 | AU36: 4.18 | AV36: 0.63 | AW36: 0 | AX36: 3.41 | AY36: 16.21 | AZ36: 0 | BA36: 0.57 | BB36: 0
A37: Arrears excluding Receiver of Rent and Possession Cases
A38: Performing Loans | B38: 0.9976 | C38: 0.996 | D38: 0.9937 | E38: 0.9889 | F38: 0.983 | G38: 0.9841 | H38: 0.9829 | I38: 0.9819 | J38: 0.9883 | K38: 0.9876 | L38: 0.993 | M38: 0.9903 | N38: 0.9929 | O38: 0.9907 | P38: 0.9905 | Q38: 0.9928 | R38: 0.9937 | S38: 0.9881 | T38: 0.9906 | U38: 0.9922 | V38: 0.9927 | W38: 0.9929 | X38: 0.9932 | Y38: 0.9971 | Z38: 0.9965 | AA38: 0.9967 | AB38: 0.9977 | AC38: 0.9968716725 | AD38: 0.998403822 | AE38: 0.9975732651 | AF38: 0.9979294131 | AG38: 0.9972617914 | AH38: 0.9981771671 | AI38: 0.997103589 | AJ38: 0.9977003931 | AK38: 0.9977336756 | AL38: 0.9980518719 | AM38: 0.9986664372 | AN38: 0.9960383579 | AO38: 0.9978601872 | AP38: 0.9985452504 | AQ38: 0.9985328835 | AR38: 0.9964576439 | AS38: 0.9963398432 | AT38: 0.9944897655 | AU38: 0.9940046548 | AV38: 0.9902540434 | AW38: 0.9894800008 | AX38: 0.9904352407 | AY38: 0.992676263 | AZ38: 0.9931768586 | BA38: 0.9964986083 | BB38: 0
A39: >1 to 2 months arrears | B39: 0.0011 | C39: 0.0027 | D39: 0.0048 | E39: 0.0065 | F39: 0.0094 | G39: 0.0063 | H39: 0.0096 | I39: 0.0125 | J39: 0.0078 | K39: 0.0057 | L39: 0.0043 | M39: 0.0075 | N39: 0.0045 | O39: 0.0076 | P39: 0.007 | Q39: 0.0056 | R39: 0.0057 | S39: 0.011 | T39: 0.0085 | U39: 0.0069 | V39: 0.0064 | W39: 0.0054 | X39: 0.004 | Y39: 0.0011 | Z39: 0.0016 | AA39: 0.0013 | AB39: 0.0005 | AC39: 0.001440090759 | AD39: 0.0004952726139 | AE39: 0.001601995915 | AF39: 0.001481073236 | AG39: 0.001872681492 | AH39: 0.001219907819 | AI39: 0.002078243014 | AJ39: 0.001124454002 | AK39: 0.001165847812 | AL39: 0.001342124945 | AM39: 0.001200134554 | AN39: 0.003444730933 | AO39: 0.001922464972 | AP39: 0.00135786043 | AQ39: 0.001224857013 | AR39: 0.003207278693 | AS39: 0.002884262247 | AT39: 0.002785530912 | AU39: 0.003380719215 | AV39: 0.008233613467 | AW39: 0.008848043764 | AX39: 0.006837223346 | AY39: 0.004910171986 | AZ39: 0.00450499707 | BA39: 0.001252494484 | BB39: 0
A40: >2 to 3 months arrears | B40: 0.0008 | C40: 0.0012 | D40: 0.0013 | E40: 0.0041 | F40: 0.0055 | G40: 0.0055 | H40: 0.003 | I40: 0.0028 | J40: 0.0019 | K40: 0.0057 | L40: 0.0009 | M40: 0.0007 | N40: 0.0024 | O40: 0.0016 | P40: 0.0024 | Q40: 0.0016 | R40: 0.0004 | S40: 0.0007 | T40: 0.0008 | U40: 0.0001 | V40: 0.0001 | W40: 0.0006 | X40: 0.0012 | Y40: 0.0003 | Z40: 0.0003 | AA40: 0.0001 | AB40: 0.0004 | AC40: 0.0006383718337 | AD40: 0.0003087692863 | AE40: 0.0002411951124 | AF40: 0 | AG40: 0.0002690443404 | AH40: 0.0001421801483 | AI40: 0 | AJ40: 0.0006988307559 | AK40: 0.0005027632848 | AL40: 0.0006060031529 | AM40: 0.0001334282696 | AN40: 0.0005169111749 | AO40: 0.0001221865096 | AP40: 0 | AQ40: 0.0001440846607 | AR40: 0.0003350774025 | AS40: 0.0007758945336 | AT40: 0.002724703608 | AU40: 0.002255327353 | AV40: 0.001264236684 | AW40: 0.001037792977 | AX40: 0.002246850689 | AY40: 0.002413565028 | AZ40: 0.001744721207 | BA40: 0.0002153342475 | BB40: 0
A41: >3 months arrears | B41: 0.0005 | C41: 0.0001 | D41: 0.0002 | E41: 0.0005 | F41: 0.0021 | G41: 0.0041 | H41: 0.0045 | I41: 0.0028 | J41: 0.002 | K41: 0.001 | L41: 0.0018 | M41: 0.0015 | N41: 0.0002 | O41: 0.0001 | P41: 0.0001 | Q41: 0 | R41: 0.0002 | S41: 0.0002 | T41: 0.0001 | U41: 0.0008 | V41: 0.0008 | W41: 0.0011 | X41: 0.0016 | Y41: 0.0015 | Z41: 0.0016 | AA41: 0.0019 | AB41: 0.0014 | AC41: 0.001049864955 | AD41: 0.0007921360776 | AE41: 0.0005835439125 | AF41: 0.0005895136284 | AG41: 0.0005964827795 | AH41: 0.00046074496 | AI41: 0.0008181679531 | AJ41: 0.0004763221567 | AK41: 0.0005977132946 | AL41: 0 | AM41: 0 | AN41: 0 | AO41: 9.516132328e-05 | AP41: 9.688912717e-05 | AQ41: 9.817477839e-05 | AR41: 0 | AS41: 0 | AT41: 0 | AU41: 0.0003592986094 | AV41: 0.0002481064532 | AW41: 0.0006341624782 | AX41: 0.0004806852868 | AY41: 0 | AZ41: 0.0005734231428 | BA41: 0.002033562991 | BB41: 0
A42: Total | B42: =SUM(B38:B41) -> 1 | C42: 1 | D42: 1 | E42: 1 | F42: 1 | G42: 1 | H42: 1 | I42: 1 | J42: 1 | K42: 1 | L42: 1 | M42: 1 | N42: 1 | O42: 1 | P42: 1 | Q42: 1 | R42: 1 | S42: =SUM(S38:S41) -> 1 | T42: 1 | U42: 1 | V42: 1 | W42: 1 | X42: 1 | Y42: =SUM(Y38:Y41) -> 1 | Z42: =SUM(Z38:Z41) -> 1 | AA42: =SUM(AA38:AA41) -> 1 | AB42: =SUM(AB38:AB41) -> 1 | AC42: =SUM(AC38:AC41) -> 1 | AD42: 1 | AE42: 1 | AF42: 1 | AG42: 1 | AH42: 1 | AI42: 1 | AJ42: 1 | AK42: 1 | AL42: 1 | AM42: 1 | AN42: 1 | AO42: 1 | AP42: 1 | AQ42: 1 | AR42: 1 | AS42: 1 | AT42: 1 | AU42: 1 | AV42: 1 | AW42: 1 | AX42: 1 | AY42: 1 | AZ42: 1 | BA42: 1 | BB42: =SUM(BB38:BB41) -> 0
A43: Total Value of Arrears (£000's) | B43: 38 | C43: 86 | D43: 130 | E43: 280 | F43: 546 | G43: 663 | H43: 743 | I43: 718 | J43: 690 | K43: 681 | L43: 566 | M43: 502 | N43: 421 | O43: 413 | P43: 368 | Q43: 373 | R43: 372 | S43: 368 | T43: 350 | U43: 288 | V43: 272 | W43: 258 | X43: 223 | Y43: 152 | Z43: 203 | AA43: 155 | AB43: 127 | AC43: 108.6339929 | AD43: 94.36493851 | AE43: 91.85593041 | AF43: 88.7951992 | AG43: 87.79966884 | AH43: 79.48682074 | AI43: 129.3744077 | AJ43: 87.36817041 | AK43: 54.44829087 | AL43: 51.02714891 | AM43: 49.66367869 | AN43: 48.48826972 | AO43: 24.85375993 | AP43: 27.10037962 | AQ43: 36.38085008 | AR43: 40.68677919 | AS43: 43.43896046 | AT43: 61.68617008 | AU43: 71.53814135 | AV43: 79.20763027 | AW43: 103.4785095 | AX43: 95.80978126 | AY43: 52.66319979 | AZ43: 35.66323958 | BA43: 32.02160008 | BB43: 0
A44: Total Value of Arrears as a % of the Notes Issued (£1,001,132,732) | B44: =+B43/1001133 -> 3.795699472e-05 | C44: 8.590267227e-05 | D44: 0.0001298528767 | E44: 0.000279683119 | F44: 0.0005453820821 | G44: 0.0006622496711 | H44: 0.0007421591337 | I44: 0.0007171874266 | J44: 0.0006892191147 | K44: 0.0006802293002 | L44: 0.0005653594477 | M44: 0.0005014318777 | N44: 0.0004205235468 | O44: 0.0004125326006 | P44: 0.0003675835279 | Q44: 0.0003725778693 | R44: 0.000371579001 | S44: =+S43/1001133 -> 0.0003675835279 | T44: 0.0003496038988 | U44: 0.0002876740653 | V44: 0.0002716921728 | W44: 0.0002577080168 | X44: 0.0002227476269 | Y44: =+Y43/1001133 -> 0.0001518279789 | Z44: 0.0002027702613 | AA44: 0.0001548245837 | AB44: 0.0001268562718 | AC44: 0.0001085110499 | AD44: 9.425814403e-05 | AE44: 9.175197543e-05 | AF44: =+AF43/1001133 -> 8.869470809e-05 | AG44: 8.770030439e-05 | AH44: =+AH43/1001133 -> 7.939686409e-05 | AI44: 0.0001292279924 | AJ44: 8.72692943e-05 | AK44: =+AK43/1001133 -> 5.438667077e-05 | AL44: 5.096940058e-05 | AM44: =+AM43/1001133 -> 4.960747342e-05 | AN44: 4.843339468e-05 | AO44: =+AO43/1001133 -> 2.482563249e-05 | AP44: 2.706970964e-05 | AQ44: =+AQ43/1001133 -> 3.633967723e-05 | AR44: 4.064073324e-05 | AS44: =+AS43/1001133 -> 4.338979982e-05 | AT44: 6.161635875e-05 | AU44: =+AU43/1001133 -> 7.145718037e-05 | AV44: 7.911798959e-05 | AW44: =+AW43/1001133 -> 0.000103361401 | AX44: 9.570135163e-05 | AY44: 0 | AZ44: 0 | BA44: 0 | BB44: 0
A46: Underlying Assets - Overall | B46: 2007-11-30 | C46: 2008-02-29 | D46: 2008-05-30 | E46: 2008-08-31 | F46: 2008-11-28 | G46: 2009-02-27 | H46: 2009-05-29 | I46: 2009-08-28 | J46: 2009-11-30 | K46: 2010-02-26 | L46: 2010-05-28 | M46: 2010-08-31 | N46: 2010-11-30 | O46: 2011-02-28 | P46: 2011-05-31 | Q46: 2011-08-31 | R46: 2011-11-30 | S46: 2012-02-29 | T46: 2012-05-31 | U46: 2012-08-31 | V46: 2012-11-30 | W46: 2013-02-28 | X46: 2013-05-31 | Y46: 2013-08-30 | Z46: 2013-11-29 | AA46: 2014-02-28 | AB46: 2014-05-30 | AC46: 2014-08-29 | AD46: 2014-11-28 | AE46: 2015-02-27 | AF46: =+AF5 -> 2015-05-29 | AG46: 2015-08-28 | AH46: 2015-11-30 | AI46: 2016-02-29 | AJ46: 2016-05-31 | AK46: 2016-08-31 | AL46: =+AL5 -> 2016-11-30 | AM46: 2017-02-28 | AN46: =+AN5 -> 2017-05-31 | AO46: 2017-08-31 | AP46: =+AP5 -> 2017-11-30 | AQ46: 2018-02-28 | AR46: =+AR5 -> 2018-05-31 | AS46: 2018-08-31 | AT46: =+AT5 -> 2018-11-30 | AU46: 2019-02-28 | AV46: =+AV5 -> 2019-05-31 | AW46: 2019-08-30 | AX46: =+AX5 -> 2019-11-29 | AY46: 2020-02-28 | AZ46: =+AZ5 -> 2020-05-29 | BA46: 2020-08-28 | BB46: =+BB5 -> 2020-11-30
A47: Weighted Average LTV | B47: 0.7934 | C47: 0.793 | D47: 0.7928 | E47: 0.7936 | F47: 0.7936 | G47: 0.7942 | H47: 0.7945 | I47: 0.7944 | J47: 0.7942 | K47: 0.7941 | L47: 0.7941 | M47: 0.7942 | N47: 0.794 | O47: 0.7936 | P47: 0.7934 | Q47: 0.7935 | R47: 0.7933 | S47: 0.7932 | T47: 0.793 | U47: 0.7928 | V47: 0.7923 | W47: 0.7921 | X47: 0.7921 | Y47: 0.7918 | Z47: 0.7914 | AA47: 0.7909 | AB47: 0.7904 | AC47: 0.7902217875 | AD47: 0.7900357433 | AE47: 0.7893899972 | AF47: 0.7893563608 | AG47: 0.7891607285 | AH47: 0.78854909 | AI47: 0.7881583222 | AJ47: 0.7870130074 | AK47: 0.7868160777 | AL47: 0.7859672558 | AM47: 0.7856778368 | AN47: 0.7853441589 | AO47: 0.78595193 | AP47: 0.7858249793 | AQ47: 0.7850165129 | AR47: 0.7851482245 | AS47: 0.7854928233 | AT47: 0.7851238433 | AU47: 0.7841882544 | AV47: 0.7841941046 | AW47: 0.7842660489 | AX47: 0.7839799097 | AY47: 0.7837139531 | AZ47: 0.783822062 | BA47: 0.7833950363 | BB47: 0
A48: Weighted Average Nationwide Indexed LTV | B48: 0.7716 | C48: 0.7738 | D48: 0.7898 | E48: 0.8157 | F48: 0.8776 | G48: 0.9062 | H48: 0.9541 | I48: 0.9227 | J48: 0.8894 | K48: 0.8803 | L48: 0.8729 | M48: 0.8535 | N48: 0.8505 | O48: 0.8736 | P48: 0.8699 | Q48: 0.8542 | R48: 0.8591 | S48: 0.8657 | T48: 0.8774 | U48: 0.8645 | V48: 0.8641 | W48: 0.8726 | X48: 0.8714 | Y48: 0.8508 | Z48: 0.8307 | AA48: 0.8136 | AB48: 0.7996 | AC48: 0.7629470084 | AD48: 0.7560084395 | AE48: 0.7567332215 | AF48: 0.7581848289 | AG48: 0.7366622835 | AH48: 0.7324324303 | AI48: 0.7310131122 | AJ48: 0.7274238632 | AK48: 0.7076929671 | AL48: 0.7016974102 | AM48: 0.7032110704 | AN48: 0.7010801103 | AO48: 0.6901502927 | AP48: 0.6853440787 | AQ48: 0.6864480516 | AR48: 0.6840611404 | AS48: 0.6775121616 | AT48: 0.6727120273 | AU48: 0.6767394539 | AV48: 0.6816404811 | AW48: 0.6722546049 | AX48: 0.6706970634 | AY48: 0.6736698169 | AZ48: 0.6673897633 | BA48: 0.6599893045 | BB48: 0
A49: Weighted Average Halifax Indexed LTV | B49: 0.7743 | C49: 0.7903 | D49: 0.807 | E49: 0.8289 | F49: 0.888 | G49: 0.9496 | H49: 0.9841 | I49: 0.981 | J49: 0.9536 | K49: 0.9349 | L49: 0.9266 | M49: 0.9156 | N49: 0.9292 | O49: 0.9402 | P49: 0.9546 | Q49: 0.9471 | R49: 0.9416 | S49: 0.947 | T49: 0.9486 | U49: 0.9467 | V49: 0.9476 | W49: 0.9505 | X49: 0.9321 | Y49: 0.9065 | Z49: 0.8887 | AA49: 0.8818 | AB49: 0.8625 | AC49: 0.829939929 | AD49: 0.8041450539 | AE49: 0.8130107224 | AF49: 0.7929111724 | AG49: 0.7548232575 | AH49: 0.7464477376 | AI49: 0.7495845973 | AJ49: 0.7231234269 | AK49: 0.7020237733 | AL49: n/a | AM49: n/a | AN49: n/a | AO49: n/a | AP49: n/a | AQ49: n/a | AR49: n/a | AS49: n/a | AT49: n/a | AU49: n/a | AV49: n/a | AW49: n/a | AX49: n/a | AY49: n/a | AZ49: n/a | BA49: n/a | BB49: n/a
A50: % of Variable Rate Mortgages | B50: 0 | C50: 0 | D50: 0 | E50: 0 | F50: 0 | G50: 0 | H50: 0 | I50: 0 | J50: 0 | K50: 0 | L50: 0 | M50: 0 | N50: 0 | O50: 0 | P50: 0 | Q50: 0 | R50: 0 | S50: 0 | T50: 0 | U50: 0 | V50: 0 | W50: 0 | X50: 0 | Y50: 0 | Z50: 0 | AA50: 0 | AB50: 0 | AC50: 0 | AD50: 0 | AE50: 0 | AF50: 0 | AG50: 0 | AH50: 0 | AI50: 0 | AJ50: 0 | AK50: 0 | AL50: 0 | AM50: 0 | AN50: 0 | AO50: 0 | AP50: 0 | AQ50: 0 | AR50: 0 | AS50: 0 | AT50: 0 | AU50: 0 | AV50: 0 | AW50: 0 | AX50: 0 | AY50: 0 | AZ50: 0 | BA50: 0 | BB50: 0
A51: % of Fixed Rate Mortgages | B51: 0.8084 | C51: 0.8073 | D51: 0.8089 | E51: 0.6682 | F51: 0.6363 | G51: 0.5671 | H51: 0.4985 | I51: 0.1607 | J51: 0.1216 | K51: 0.1173 | L51: 0.0951 | M51: 0.0448 | N51: 0.0439 | O51: 0.04 | P51: 0.0347 | Q51: 0.0093 | R51: 0.0082 | S51: 0.0083 | T51: 0.0083 | U51: 0.0006 | V51: 0.0006 | W51: 0.0006 | X51: 0.0001 | Y51: 0 | Z51: 0 | AA51: 0 | AB51: 0 | AC51: 0 | AD51: 0 | AE51: 0 | AF51: 0 | AG51: 0 | AH51: 0 | AI51: 0 | AJ51: 0 | AK51: 0 | AL51: 0 | AM51: 0 | AN51: 0 | AO51: 0 | AP51: 0 | AQ51: 0 | AR51: 0 | AS51: 0.0008735120574 | AT51: 0.0008884019942 | AU51: 0.0009062660544 | AV51: 0.0009234226929 | AW51: 0.0009408715744 | AX51: 0.0009615666025 | AY51: 0.0009789424688 | AZ51: 0.0009962202321 | BA51: 0.001008666505 | BB51: 0
A52: % of Base Rate Mortgages | B52: 0.1706 | C52: 0.1685 | D52: 0.1648 | E52: 0.1703 | F52: 0.1737 | G52: 0.176 | H52: 0.1848 | I52: 0.1852 | J52: 0.186 | K52: 0.186 | L52: 0.1855 | M52: 0.1853 | N52: 0.1856 | O52: 0.1856 | P52: 0.1861 | Q52: 0.1866 | R52: 0.1877 | S52: 0.1886 | T52: 0.1891 | U52: 0.1895 | V52: 0.1894 | W52: 0.1892 | X52: 0.1894 | Y52: 0.1895 | Z52: 0.19 | AA52: 0.1908 | AB52: 0.1919 | AC52: 0.1915094526 | AD52: 0.1912170895 | AE52: 0.1914869742 | AF52: 0.192222792 | AG52: 0.1926084276 | AH52: 0.1926014375 | AI52: 0.1924580397 | AJ52: 0.1930445109 | AK52: 0.1943256259 | AL52: 0.1957130937 | AM52: 0.195798404 | AN52: 0.1974201317 | AO52: 0.1980756951 | AP52: 0.1998392585 | AQ52: 0.200355243 | AR52: 0.2013059023 | AS52: 0.2006655768 | AT52: 0.2031829903 | AU52: 0.2031337027 | AV52: 0.203468266 | AW52: 0.2038193633 | AX52: 0.2027988633 | AY52: 0.2029475714 | AZ52: 0.2028335238 | BA52: 0.2034490955 | BB52: 0
A53: % of Libor Linked Mortgages | B53: 0.021 | C53: 0.0242 | D53: 0.0263 | E53: 0.1615 | F53: 0.19 | G53: 0.2569 | H53: 0.3167 | I53: 0.6542 | J53: 0.6924 | K53: 0.6967 | L53: 0.7194 | M53: 0.7699 | N53: 0.7705 | O53: 0.7744 | P53: 0.7792 | Q53: 0.8041 | R53: 0.804 | S53: 0.8032 | T53: 0.8026 | U53: 0.8098 | V53: 0.8099 | W53: 0.8101 | X53: 0.8105 | Y53: 0.8105 | Z53: 0.81 | AA53: 0.8092 | AB53: 0.8081 | AC53: 0.8084905474 | AD53: 0.8087829105 | AE53: 0.8085130258 | AF53: 0.807777208 | AG53: 0.8073915724 | AH53: 0.8073985625 | AI53: 0.8075419603 | AJ53: 0.8069554891 | AK53: 0.8056743741 | AL53: 0.8042869063 | AM53: 0.804201596 | AN53: 0.8025798683 | AO53: 0.8019243049 | AP53: 0.8001607415 | AQ53: 0.799644757 | AR53: 0.7986940977 | AS53: 0.7984609111 | AT53: 0.7959286077 | AU53: 0.7959600312 | AV53: 0.7956083113 | AW53: 0.7952397651 | AX53: 0.7962395701 | AY53: 0.7960734861 | AZ53: 0.796170256 | BA53: 0.7955422379 | BB53: 0
A54: Weighted Average Loan Size | B54: 145951.85 | C54: 146388.06 | D54: 146746.22 | E54: 146119.4 | F54: 145560.9 | G54: 145109.81 | H54: 144815 | I54: 144777.08 | J54: 144719.53 | K54: 144603.4 | L54: 144463.59 | M54: 144142.13 | N54: 144064.65 | O54: 143880.94 | P54: 143735.45 | Q54: 143433.94 | R54: 143085.35 | S54: 142899.31 | T54: 142787.96 | U54: 142656.87 | V54: 142338.38 | W54: 142357.24 | X54: 142125.18 | Y54: 141915.63 | Z54: 141476.96 | AA54: 141229.28 | AB54: 140906.01 | AC54: 140528.4324 | AD54: 140383.3039 | AE54: 140265.641 | AF54: 140184.3691 | AG54: 140052.581 | AH54: 139793.993 | AI54: 139628.6495 | AJ54: 138767.5669 | AK54: 138282.5253 | AL54: 138139.941 | AM54: 137987.1512 | AN54: 137722.3621 | AO54: 137407.0639 | AP54: 137346.8519 | AQ54: 137294.7584 | AR54: 137007.9938 | AS54: 136598.2076 | AT54: 136380.7707 | AU54: 136073.6826 | AV54: 135837.5958 | AW54: 135613.6765 | AX54: 135420.4564 | AY54: 135259.4017 | AZ54: 134985.5527 | BA54: 134801.2533 | BB54: 0
A55: Weighted Average Interest Rate | B55: 0.05413 | C55: 0.05378 | D55: 0.05305 | E55: 0.05776 | F55: 0.05768 | G55: 0.04872 | H55: 0.04167 | I55: 0.03351 | J55: 0.02842 | K55: 0.02838 | L55: 0.02802 | M55: 0.02742 | N55: 0.02743 | O55: 0.02741 | P55: 0.02795 | Q55: 0.02758 | R55: 0.02819 | S55: 0.0292 | T55: 0.02927 | U55: 0.02799 | V55: 0.02553 | W55: 0.02489 | X55: 0.02483 | Y55: 0.02482 | Z55: 0.02486 | AA55: 0.02489 | AB55: 0.02489 | AC55: 0.02494436706 | AD55: 0.02505340413 | AE55: 0.02501975792 | AF55: 0.02505465575 | AG55: 0.02510785611 | AH55: 0.02516768343 | AI55: 0.02511807144 | AJ55: 0.02519651258 | AK55: 0.02519175491 | AL55: 0.02308181575 | AM55: 0.02308322174 | AN55: 0.02304326108 | AO55: 0.0231744247 | AP55: 0.02310825875 | AQ55: 0.02536694256 | AR55: 0.02646629998 | AS55: 0.02620890426 | AT55: 0.02823931799 | AU55: 0.02901741034 | AV55: 0.02842046066 | AW55: 0.02781418982 | AX55: 0.02767404195 | AY55: 0.02774019701 | AZ55: 0.02486461957 | BA55: 0.02171926838 | BB55: 0
A56: Weighted Average Maturity Date (years) | B56: 20.74 | C56: 20.5 | D56: 20.26 | E56: 20 | F56: 19.78 | G56: 19.54 | H56: 19.31 | I56: 19.07 | J56: 18.81 | K56: 18.56 | L56: 18.32 | M56: 18.09 | N56: 17.84 | O56: 17.59 | P56: 17.33 | Q56: 17.09 | R56: 16.83 | S56: 16.59 | T56: 16.36 | U56: 16.12 | V56: 15.88 | W56: 15.64 | X56: 15.4 | Y56: 15.18 | Z56: 14.93 | AA56: 14.68 | AB56: 14.44 | AC56: 14.19321403 | AD56: 13.96288818 | AE56: 13.7181705 | AF56: 13.49294862 | AG56: 13.24941146 | AH56: 13.01588718 | AI56: 12.80856629 | AJ56: 12.55393418 | AK56: 12.34107027 | AL56: 12.10281528 | AM56: 11.8899612 | AN56: 11.87944202 | AO56: 11.73341414 | AP56: 11.50393685 | AQ56: 11.25720196 | AR56: 11.03985702 | AS56: 10.82870721 | AT56: 10.56866689 | AU56: 10.32156797 | AV56: 10.12982058 | AW56: 9.898954599 | AX56: 9.671301641 | AY56: 9.448190001 | AZ56: 9.231522017 | BA56: 8.9899726 | BB56: 0
A57: Weighted Average Seasoning (months) | B57: 5.74 | C57: 8.73 | D57: 11.76 | E57: 14.78 | F57: 17.78 | G57: 20.74 | H57: 23.76 | I57: 26.79 | J57: 29.78 | K57: 32.74 | L57: 35.76 | M57: 38.78 | N57: 41.78 | O57: 44.74 | P57: 47.76 | Q57: 50.79 | R57: 53.78 | S57: 56.77 | T57: 59.79 | U57: 62.82 | V57: 65.81 | W57: 68.77 | X57: 71.79 | Y57: 74.82 | Z57: 77.81 | AA57: 80.77 | AB57: 83.79 | AC57: 86.82167307 | AD57: 89.81072396 | AE57: 92.76977483 | AF57: 95.79425312 | AG57: 98.82148686 | AH57: 101.8130866 | AI57: 104.8075888 | AJ57: 107.8313938 | AK57: 110.7796867 | AL57: 113.7677365 | AM57: 116.7251965 | AN57: 119.7509652 | AO57: 122.7700986 | AP57: 125.7580535 | AQ57: 128.7125718 | AR57: 131.7375167 | AS57: 134.7598312 | AT57: 137.7485339 | AU57: 140.7097338 | AV57: 143.7294483 | AW57: 146.7527029 | AX57: 149.7415308 | AY57: 152.7353546 | AZ57: 155.7576161 | BA57: 158.7809454 | BB57: 0
A58: % of Interest Only Mortgages | B58: 0.9646 | C58: 0.9645 | D58: 0.9641 | E58: 0.964 | F58: 0.9637 | G58: 0.9651 | H58: 0.9652 | I58: 0.964 | J58: 0.964 | K58: 0.9639 | L58: 0.964 | M58: 0.9638 | N58: 0.9644 | O58: 0.9645 | P58: 0.9648 | Q58: 0.9648 | R58: 0.965 | S58: 0.9659 | T58: 0.9665 | U58: 0.9672 | V58: 0.9673 | W58: 0.9678 | X58: 0.9685 | Y58: 0.9695 | Z58: 0.9695 | AA58: 0.97 | AB58: 0.9705 | AC58: 0.9705651789 | AD58: 0.9707519099 | AE58: 0.9707511569 | AF58: 0.9713903794 | AG58: 0.9718307323 | AH58: 0.9719077203 | AI58: 0.9723010142 | AJ58: 0.9722808092 | AK58: 0.9726068762 | AL58: 0.9732491602 | AM58: 0.9751103244 | AN58: 0.9750912464 | AO58: 0.9755155427 | AP58: 0.9763061721 | AQ58: 0.9769706409 | AR58: 0.9774121335 | AS58: 0.9774803292 | AT58: 0.9768646898 | AU58: 0.9775628356 | AV58: 0.9780164804 | AW58: 0.9788265251 | AX58: 0.9794582165 | AY58: 0.9796493928 | AZ58: 0.9799555467 | BA58: 0.9812643241 | BB58: 0
A59: % of Repayment Mortgages | B59: 0.0354 | C59: 0.0355 | D59: 0.0359 | E59: 0.036 | F59: 0.0363 | G59: 0.0349 | H59: 0.0348 | I59: 0.036 | J59: 0.036 | K59: 0.0361 | L59: 0.036 | M59: 0.0362 | N59: 0.0356 | O59: 0.0355 | P59: 0.0352 | Q59: 0.0352 | R59: 0.035 | S59: 0.0341 | T59: 0.0335 | U59: 0.0328 | V59: 0.0327 | W59: 0.0322 | X59: 0.0315 | Y59: 0.0305 | Z59: 0.0305 | AA59: 0.03 | AB59: 0.0295 | AC59: 0.02943482114 | AD59: 0.02924809012 | AE59: 0.02924884314 | AF59: 0.02860962064 | AG59: 0.02816926765 | AH59: 0.02809227966 | AI59: 0.0276989858 | AJ59: 0.02771919084 | AK59: 0.02739312382 | AL59: 0.02675083978 | AM59: 0.02488967564 | AN59: 0.02490875359 | AO59: 0.02448445731 | AP59: 0.0236938279 | AQ59: 0.02302935914 | AR59: 0.02258786649 | AS59: 0.02251967082 | AT59: 0.02313531019 | AU59: 0.02243716444 | AV59: 0.02198351956 | AW59: 0.02117347487 | AX59: 0.02054178355 | AY59: 0.02035060724 | AZ59: 0.02004445334 | BA59: 0.0187356759 | BB59: 0
A60: % of Mortgages in London | B60: 0.1988 | C60: 0.1981 | D60: 0.1966 | E60: 0.1908 | F60: 0.186 | G60: 0.1813 | H60: 0.1767 | I60: 0.1761 | J60: 0.1749 | K60: 0.1743 | L60: 0.1733 | M60: 0.1717 | N60: 0.1717 | O60: 0.1723 | P60: 0.1718 | Q60: 0.1706 | R60: 0.1688 | S60: 0.1685 | T60: 0.1688 | U60: 0.1676 | V60: 0.1665 | W60: 0.1667 | X60: 0.1659 | Y60: 0.165 | Z60: 0.1641 | AA60: 0.1626 | AB60: 0.1601 | AC60: 0.1593230721 | AD60: 0.1587877072 | AE60: 0.1582191891 | AF60: 0.157625231 | AG60: 0.1560290938 | AH60: 0.153974474 | AI60: 0.152340938 | AJ60: 0.1474057548 | AK60: 0.1457806084 | AL60: 0.1463427665 | AM60: 0.1449786709 | AN60: 0.1421650742 | AO60: 0.1399772642 | AP60: 0.1394733669 | AQ60: 0.1394725762 | AR60: 0.140375414 | AS60: 0.1402017971 | AT60: 0.1392145768 | AU60: 0.1402438003 | AV60: 0.1402556096 | AW60: 0.1394736208 | AX60: 0.1370436935 | AY60: 0.1380031727 | AZ60: 0.1372889707 | BA60: 0.137279483 | BB60: 0
A61: % of Mortgages in the South East | B61: 0.2731 | C61: 0.2727 | D61: 0.272 | E61: 0.2699 | F61: 0.2699 | G61: 0.2693 | H61: 0.2701 | I61: 0.27 | J61: 0.2709 | K61: 0.2704 | L61: 0.2706 | M61: 0.2713 | N61: 0.271 | O61: 0.2703 | P61: 0.27 | Q61: 0.2698 | R61: 0.2704 | S61: 0.2696 | T61: 0.2689 | U61: 0.2696 | V61: 0.2692 | W61: 0.2691 | X61: 0.2688 | Y61: 0.2682 | Z61: 0.2672 | AA61: 0.2672 | AB61: 0.2675 | AC61: 0.2662833635 | AD61: 0.2644805164 | AE61: 0.2642002482 | AF61: 0.2629851596 | AG61: 0.26217568 | AH61: 0.2609418281 | AI61: 0.2598978951 | AJ61: 0.2595914144 | AK61: 0.2572094934 | AL61: 0.2557731701 | AM61: 0.2549794189 | AN61: 0.2543697769 | AO61: 0.2531035544 | AP61: 0.2518128522 | AQ61: 0.2502680156 | AR61: 0.2469665908 | AS61: 0.2440306208 | AT61: 0.244016707 | AU61: 0.2413147631 | AV61: 0.2381103452 | AW61: 0.2352376735 | AX61: 0.2356640436 | AY61: 0.2346751257 | AZ61: 0.2314900189 | BA61: 0.2296400807 | BB61: 0
A62: % of Owner Occupied Mortgages | B62: 0 | C62: 0 | D62: 0 | E62: 0 | F62: 0 | G62: 0 | H62: 0 | I62: 0 | J62: 0 | K62: 0 | L62: 0 | M62: 0 | N62: 0 | O62: 0 | P62: 0 | Q62: 0 | R62: 0 | S62: 0 | T62: 0 | U62: 0 | V62: 0 | W62: 0 | X62: 0 | Y62: 0 | Z62: 0 | AA62: 0 | AB62: 0 | AC62: 0 | AD62: 0 | AE62: 0 | AF62: 0 | AG62: 0 | AH62: 0 | AI62: 0 | AJ62: 0 | AK62: 0 | AL62: 0 | AM62: 0 | AN62: 0 | AO62: 0 | AP62: 0 | AQ62: 0 | AR62: 0 | AS62: 0 | AT62: 0 | AU62: 0 | AV62: 0 | AW62: 0 | AX62: 0 | AY62: 0 | AZ62: 0 | BA62: 0 | BB62: 0
A63: % of Investment Home Loans - Professional Landlords | B63: 0.4597 | C63: 0.4609 | D63: 0.4623 | E63: 0.4785 | F63: 0.4868 | G63: 0.4935 | H63: 0.4948 | I63: 0.4963 | J63: 0.4974 | K63: 0.4981 | L63: 0.4988 | M63: 0.4981 | N63: 0.4985 | O63: 0.4992 | P63: 0.5003 | Q63: 0.502 | R63: 0.5036 | S63: 0.5039 | T63: 0.505 | U63: 0.5052 | V63: 0.5053 | W63: 0.5054 | X63: 0.5065 | Y63: 0.5077 | Z63: 0.508 | AA63: 0.5096 | AB63: 0.5121 | AC63: 0.5121634198 | AD63: 0.5141764213 | AE63: 0.5157131247 | AF63: 0.5176285483 | AG63: 0.5196770341 | AH63: 0.5213076608 | AI63: 0.5223246944 | AJ63: 0.5217975544 | AK63: 0.5223518337 | AL63: 0.5241748111 | AM63: 0.5275569502 | AN63: 0.5294078659 | AO63: 0.5330380479 | AP63: 0.5366295145 | AQ63: 0.5389479972 | AR63: 0.542871357 | AS63: 0.5480936639 | AT63: 0.5505964715 | AU63: 0.5512989473 | AV63: 0.5516844942 | AW63: 0.5538513515 | AX63: 0.5555306418 | AY63: 0.5582852202 | AZ63: 0.5602071917 | BA63: 0.5616493734 | BB63: 0
A64: % of Investment Home Loans - Emerging Professional Landlords | B64: 0.5403 | C64: 0.5391 | D64: 0.5377 | E64: 0.5215 | F64: 0.5132 | G64: 0.5065 | H64: 0.5052 | I64: 0.5037 | J64: 0.5026 | K64: 0.5019 | L64: 0.5012 | M64: 0.5019 | N64: 0.5015 | O64: 0.5008 | P64: 0.4997 | Q64: 0.498 | R64: 0.4964 | S64: 0.4961 | T64: 0.495 | U64: 0.4948 | V64: 0.4947 | W64: 0.4946 | X64: 0.4935 | Y64: 0.4923 | Z64: 0.492 | AA64: 0.4904 | AB64: 0.4879 | AC64: 0.4878365802 | AD64: 0.4858235787 | AE64: 0.4842868753 | AF64: 0.4823714517 | AG64: 0.4803229659 | AH64: 0.4786923392 | AI64: 0.4776753056 | AJ64: 0.4782024456 | AK64: 0.4776481663 | AL64: 0.4758251889 | AM64: 0.4724430498 | AN64: 0.4705921341 | AO64: 0.4669619521 | AP64: 0.4633704855 | AQ64: 0.4610520028 | AR64: 0.457128643 | AS64: 0.4519063361 | AT64: 0.4494035285 | AU64: 0.4487010527 | AV64: 0.4483155058 | AW64: 0.4461486485 | AX64: 0.4444693582 | AY64: 0.4417147798 | AZ64: 0.4397928083 | BA64: 0.4383506266 | BB64: 0
A65: Weighted Average Interest Coverage Ratio (calculated at the origination date) | B65: 1.53 | C65: 1.53 | D65: 1.54 | E65: 1.54 | F65: 1.54 | G65: 1.54 | H65: 1.54 | I65: 1.54 | J65: 1.54 | K65: 1.54 | L65: 1.54 | M65: 1.54 | N65: 1.54 | O65: 1.54 | P65: 1.54 | Q65: 1.54 | R65: 1.54 | S65: 1.54 | T65: 1.54 | U65: 1.54 | V65: 1.54 | W65: 1.54 | X65: 1.54 | Y65: 1.54 | Z65: 1.54 | AA65: 1.54 | AB65: 1.54 | AC65: 1.542352017 | AD65: 1.543315435 | AE65: 1.543941491 | AF65: 1.543488543 | AG65: 1.544490533 | AH65: 1.545380175 | AI65: 1.547346029 | AJ65: 1.548270683 | AK65: 1.549566267 | AL65: 1.549084911 | AM65: 1.550111846 | AN65: 1.547727366 | AO65: 1.548840299 | AP65: 1.549973485 | AQ65: 1.54958372 | AR65: 1.549255857 | AS65: 1.548944416 | AT65: 1.551207942 | AU65: 1.551042136 | AV65: 1.549203084 | AW65: 1.551565796 | AX65: 1.554150987 | AY65: 1.555501864 | AZ65: 1.556611166 | BA65: 1.558458309 | BB65: 0
A66: % of Paragon Originated Assets | B66: 0.4814 | C66: 0.4823 | D66: 0.4851 | E66: 0.5079 | F66: 0.5212 | G66: 0.5305 | H66: 0.5329 | I66: 0.5339 | J66: 0.5347 | K66: 0.5359 | L66: 0.536 | M66: 0.5357 | N66: 0.5353 | O66: 0.5356 | P66: 0.5366 | Q66: 0.5373 | R66: 0.5385 | S66: 0.5392 | T66: 0.5399 | U66: 0.5413 | V66: 0.5421 | W66: 0.5424 | X66: 0.5433 | Y66: 0.5426 | Z66: 0.5436 | AA66: 0.5451 | AB66: 0.5469 | AC66: 0.5462811386 | AD66: 0.5479491944 | AE66: 0.5491402366 | AF66: 0.5495661277 | AG66: 0.5521971445 | AH66: 0.5531121038 | AI66: 0.5547288582 | AJ66: 0.5526962437 | AK66: 0.5561779682 | AL66: 0.5579625371 | AM66: 0.5603013112 | AN66: 0.5626961163 | AO66: 0.5650851128 | AP66: 0.5683600353 | AQ66: 0.5698991831 | AR66: 0.5713806545 | AS66: 0.5735525603 | AT66: 0.5773608781 | AU66: 0.5790210383 | AV66: 0.5806509019 | AW66: 0.5823122896 | AX66: 0.5850882518 | AY66: 0.5876122245 | AZ66: 0.5889647543 | BA66: 0.5914872203 | BB66: 0
A67: % of Mortgage Trust Originated Assets | B67: 0.5186 | C67: 0.5177 | D67: 0.5149 | E67: 0.4921 | F67: 0.4788 | G67: 0.4695 | H67: 0.4671 | I67: 0.4661 | J67: 0.4653 | K67: 0.4641 | L67: 0.464 | M67: 0.4643 | N67: 0.4647 | O67: 0.4644 | P67: 0.4634 | Q67: 0.4627 | R67: 0.4615 | S67: 0.4608 | T67: 0.4601 | U67: 0.4587 | V67: 0.4579 | W67: 0.4576 | X67: 0.4567 | Y67: 0.4574 | Z67: 0.4564 | AA67: 0.4549 | AB67: 0.4531 | AC67: 0.4537188614 | AD67: 0.4520508056 | AE67: 0.4508597634 | AF67: 0.4504338723 | AG67: 0.4478028555 | AH67: 0.4468878962 | AI67: 0.4452711418 | AJ67: 0.4473037563 | AK67: 0.4438220318 | AL67: 0.4420374629 | AM67: 0.4396986888 | AN67: 0.4373038837 | AO67: 0.4349148872 | AP67: 0.4316399647 | AQ67: 0.4301008169 | AR67: 0.4286193455 | AS67: 0.4264474397 | AT67: 0.4226391219 | AU67: 0.4209789617 | AV67: 0.4193490981 | AW67: 0.4176877104 | AX67: 0.4149117482 | AY67: 0.4123877755 | AZ67: 0.4110352457 | BA67: 0.4085127797 | BB67: 0
A69: Underlying Assets - Paragon Originated Assets | B69: 2007-11-30 | C69: 2008-02-29 | D69: 2008-05-30 | E69: 2008-08-31 | F69: 2008-11-28 | G69: 2009-02-27 | H69: 2009-05-29 | I69: 2009-08-28 | J69: 2009-11-30 | K69: 2010-02-26 | L69: 2010-05-28 | M69: 2010-08-31 | N69: 2010-11-30 | O69: 2011-02-28 | P69: 2011-05-31 | Q69: 2011-08-31 | R69: 2011-11-30 | S69: 2012-02-29 | T69: 2012-05-31 | U69: 2012-08-31 | V69: 2012-11-30 | W69: 2013-02-28 | X69: 2013-05-31 | Y69: 2013-08-30 | Z69: 2013-11-29 | AA69: 2014-02-28 | AB69: 2014-05-30 | AC69: 2014-08-29 | AD69: 2014-11-28 | AE69: 2015-02-27 | AF69: =+AF46 -> 2015-05-29 | AG69: 2015-08-28 | AH69: 2015-11-30 | AI69: 2016-02-29 | AJ69: 2016-05-31 | AK69: 2016-08-31 | AL69: =+AL46 -> 2016-11-30 | AM69: 2017-02-28 | AN69: =+AN46 -> 2017-05-31 | AO69: 2017-08-31 | AP69: =+AP46 -> 2017-11-30 | AQ69: 2018-02-28 | AR69: =+AR46 -> 2018-05-31 | AS69: 2018-08-31 | AT69: =+AT46 -> 2018-11-30 | AU69: 2019-02-28 | AV69: =+AV46 -> 2019-05-31 | AW69: 2019-08-30 | AX69: =+AX46 -> 2019-11-29 | AY69: 2020-02-28 | AZ69: =+AZ46 -> 2020-05-29 | BA69: 2020-08-28 | BB69: =+BB46 -> 2020-11-30
A70: Weighted Average LTV | B70: 0.8006 | C70: 0.7998 | D70: 0.7993 | E70: 0.7994 | F70: 0.799 | G70: 0.7988 | H70: 0.7984 | I70: 0.7979 | J70: 0.7977 | K70: 0.7975 | L70: 0.7971 | M70: 0.7973 | N70: 0.7972 | O70: 0.7967 | P70: 0.7964 | Q70: 0.7968 | R70: 0.7966 | S70: 0.7963 | T70: 0.796 | U70: 0.796 | V70: 0.7955 | W70: 0.7953 | X70: 0.7953 | Y70: 0.7949 | Z70: 0.7946 | AA70: 0.7942 | AB70: 0.7939 | AC70: 0.7939719453 | AD70: 0.7937095435 | AE70: 0.7931858124 | AF70: 0.7933805715 | AG70: 0.7933984368 | AH70: 0.7925838422 | AI70: 0.7921865657 | AJ70: 0.7904365421 | AK70: 0.7900590239 | AL70: 0.7889140366 | AM70: 0.788524846 | AN70: 0.7883236028 | AO70: 0.7889398101 | AP70: 0.7889550708 | AQ70: 0.7878277887 | AR70: 0.7883426129 | AS70: 0.789308335 | AT70: 0.7890210003 | AU70: 0.7878698325 | AV70: 0.788149497 | AW70: 0.7881976718 | AX70: 0.7877072852 | AY70: 0.786862552 | AZ70: 0.7870587012 | BA70: 0.7866133278 | BB70: 0
A71: Weighted Average Nationwide Indexed LTV | B71: 0.7815 | C71: 0.7841 | D71: 0.7995 | E71: 0.8235 | F71: 0.8812 | G71: 0.9111 | H71: 0.9582 | I71: 0.9282 | J71: 0.8964 | K71: 0.8905 | L71: 0.8828 | M71: 0.8632 | N71: 0.8636 | O71: 0.886 | P71: 0.8817 | Q71: 0.8653 | R71: 0.8713 | S71: 0.8792 | T71: 0.8908 | U71: 0.8784 | V71: 0.8789 | W71: 0.8881 | X71: 0.8873 | Y71: 0.8662 | Z71: 0.8467 | AA71: 0.8305 | AB71: 0.8179 | AC71: 0.7823217434 | AD71: 0.775217037 | AE71: 0.7765069723 | AF71: 0.7774242248 | AG71: 0.7565641061 | AH71: 0.7534000912 | AI71: 0.7530641103 | AJ71: 0.7507136737 | AK71: 0.7305476046 | AL71: 0.724489069 | AM71: 0.7268909351 | AN71: 0.7260745716 | AO71: 0.7133276166 | AP71: 0.7070321857 | AQ71: 0.7087705894 | AR71: 0.7059719624 | AS71: 0.698897116 | AT71: 0.6927825704 | AU71: 0.6966828128 | AV71: 0.7014149538 | AW71: 0.6917925442 | AX71: 0.6895085236 | AY71: 0.6910840887 | AZ71: 0.6848305847 | BA71: 0.677016919 | BB71: 0
A72: Weighted Average Halifax Indexed LTV | B72: 0.7848 | C72: 0.7972 | D72: 0.814 | E72: 0.8353 | F72: 0.893 | G72: 0.9548 | H72: 0.9847 | I72: 0.9838 | J72: 0.9583 | K72: 0.9438 | L72: 0.9344 | M72: 0.9254 | N72: 0.9382 | O72: 0.949 | P72: 0.9658 | Q72: 0.9572 | R72: 0.9513 | S72: 0.9612 | T72: 0.9608 | U72: 0.9594 | V72: 0.962 | W72: 0.9656 | X72: 0.9466 | Y72: 0.9203 | Z72: 0.9029 | AA72: 0.8965 | AB72: 0.8782 | AC72: 0.8459414646 | AD72: 0.8217996696 | AE72: 0.8312388491 | AF72: 0.8084595022 | AG72: 0.7702776923 | AH72: 0.763300695 | AI72: 0.7683325953 | AJ72: 0.7438123115 | AK72: 0.7200918186 | AL72: n/a | AM72: n/a | AN72: n/a | AO72: n/a | AP72: n/a | AQ72: n/a | AR72: n/a | AS72: n/a | AT72: n/a | AU72: n/a | AV72: n/a | AW72: n/a | AX72: n/a | AY72: n/a | AZ72: n/a | BA72: n/a | BB72: n/a
A73: % of Variable Rate Mortgages | B73: 0 | C73: 0 | D73: 0 | E73: 0 | F73: 0 | G73: 0 | H73: 0 | I73: 0 | J73: 0 | K73: 0 | L73: 0 | M73: 0 | N73: 0 | O73: 0 | P73: 0 | Q73: 0 | R73: 0 | S73: 0 | T73: 0 | U73: 0 | V73: 0 | W73: 0 | X73: 0 | Y73: 0 | Z73: 0 | AA73: 0 | AB73: 0 | AC73: 0 | AD73: 0 | AE73: 0 | AF73: 0 | AG73: 0 | AH73: 0 | AI73: 0 | AJ73: 0 | AK73: 0 | AL73: 0 | AM73: 0 | AN73: 0 | AO73: 0 | AP73: 0 | AQ73: 0 | AR73: 0 | AS73: 0 | AT73: 0 | AU73: 0 | AV73: 0 | AW73: 0 | AX73: 0 | AY73: 0 | AZ73: 0 | BA73: 0 | BB73: 0
A74: % of Fixed Rate Mortgages | B74: 0.7272 | C74: 0.7258 | D74: 0.7337 | E74: 0.7323 | F74: 0.7261 | G74: 0.7133 | H74: 0.662 | I74: 0.1696 | J74: 0.1413 | K74: 0.1322 | L74: 0.0947 | M74: 0.0416 | N74: 0.0406 | O74: 0.0403 | P74: 0.0383 | Q74: 0.0147 | R74: 0.0148 | S74: 0.0148 | T74: 0.0149 | U74: 0.0009 | V74: 0.0009 | W74: 0.0009 | X74: 0 | Y74: 0 | Z74: 0 | AA74: 0 | AB74: 0 | AC74: 0 | AD74: 0 | AE74: 0 | AF74: 0 | AG74: 0 | AH74: 0 | AI74: 0 | AJ74: 0 | AK74: 0 | AL74: 0 | AM74: 0 | AN74: 0 | AO74: 0 | AP74: 0 | AQ74: 0 | AR74: 0 | AS74: 0.001522985194 | AT74: 0.001538729117 | AU74: 0.001565169475 | AV74: 0.001590323359 | AW74: 0.001615750846 | AX74: 0.001643455666 | AY74: 0.00166596682 | AZ74: 0.001691476824 | BA74: 0.00170530566 | BB74: 0
A75: % of Base Rate Mortgages | B75: 0.2359 | C75: 0.2359 | D75: 0.232 | E75: 0.2298 | F75: 0.2291 | G75: 0.229 | H75: 0.2396 | I75: 0.2401 | J75: 0.2408 | K75: 0.241 | L75: 0.2409 | M75: 0.2403 | N75: 0.2408 | O75: 0.2409 | P75: 0.2415 | Q75: 0.2417 | R75: 0.2426 | S75: 0.2433 | T75: 0.2435 | U75: 0.2436 | V75: 0.2435 | W75: 0.2439 | X75: 0.2446 | Y75: 0.2445 | Z75: 0.2455 | AA75: 0.2457 | AB75: 0.2461 | AC75: 0.2464390171 | AD75: 0.2452257367 | AE75: 0.2450049355 | AF75: 0.2451563596 | AG75: 0.2452712818 | AH75: 0.2443942561 | AI75: 0.2438086142 | AJ75: 0.2445463271 | AK75: 0.2451325536 | AL75: 0.2460595695 | AM75: 0.2454907763 | AN75: 0.2469083804 | AO75: 0.2470579032 | AP75: 0.2493736342 | AQ75: 0.2494080443 | AR75: 0.2499224508 | AS75: 0.2500638638 | AT75: 0.2518063503 | AU75: 0.2523860018 | AV75: 0.253268634 | AW75: 0.2534122641 | AX75: 0.2540693298 | AY75: 0.2526084321 | AZ75: 0.2535362489 | BA75: 0.2527264449 | BB75: 0
A76: % of Libor Linked Mortgages | B76: 0.0369 | C76: 0.0383 | D76: 0.0343 | E76: 0.0379 | F76: 0.0448 | G76: 0.0577 | H76: 0.0984 | I76: 0.5903 | J76: 0.6179 | K76: 0.6267 | L76: 0.6644 | M76: 0.7181 | N76: 0.7187 | O76: 0.7188 | P76: 0.7202 | Q76: 0.7435 | R76: 0.7426 | S76: 0.7419 | T76: 0.7416 | U76: 0.7554 | V76: 0.7555 | W76: 0.7551 | X76: 0.7554 | Y76: 0.7555 | Z76: 0.7545 | AA76: 0.7543 | AB76: 0.7539 | AC76: 0.7535609829 | AD76: 0.7547742633 | AE76: 0.7549950645 | AF76: 0.7548436404 | AG76: 0.7547287182 | AH76: 0.7556057439 | AI76: 0.7561913858 | AJ76: 0.7554536729 | AK76: 0.7548674464 | AL76: 0.7539404305 | AM76: 0.7545092237 | AN76: 0.7530916196 | AO76: 0.7529420968 | AP76: 0.7506263658 | AQ76: 0.7505919557 | AR76: 0.7500775492 | AS76: 0.748413151 | AT76: 0.7466549206 | AU76: 0.7460488287 | AV76: 0.7451410426 | AW76: 0.744971985 | AX76: 0.7442872145 | AY76: 0.7457256011 | AZ76: 0.7447722743 | BA76: 0.7455682494 | BB76: 0
A77: Weighted Average Loan Size | B77: 140367.4 | C77: 141104.78 | D77: 141927.27 | E77: 142381.86 | F77: 142460.28 | G77: 142504.03 | H77: 142337.23 | I77: 142505.04 | J77: 142562.72 | K77: 142606.82 | L77: 142585 | M77: 142080.69 | N77: 141995.1 | O77: 141799.68 | P77: 141734.9 | Q77: 141447.43 | R77: 141321.09 | S77: 141258.9 | T77: 141088.51 | U77: 141206.69 | V77: 141029.7 | W77: 141106.24 | X77: 141044.42 | Y77: 140797.71 | Z77: 140532.05 | AA77: 140484.21 | AB77: 140395.59 | AC77: 139952.6503 | AD77: 139958.4104 | AE77: 140022.6723 | AF77: 139994.7945 | AG77: 139903.1975 | AH77: 139613.9331 | AI77: 139447.9569 | AJ77: 138064.2539 | AK77: 137980.178 | AL77: 137868.3982 | AM77: 137790.5289 | AN77: 137333.3066 | AO77: 137049.3202 | AP77: 137129.526 | AQ77: 137145.7315 | AR77: 137019.4129 | AS77: 136780.2732 | AT77: 136953.0726 | AU77: 136775.7946 | AV77: 136613.2797 | AW77: 136606.6532 | AX77: 136712.3066 | AY77: 136261.3588 | AZ77: 135966.0318 | BA77: 135872.9882 | BB77: 0
A78: Weighted Average Interest Rate | B78: 0.05598 | C78: 0.05539 | D78: 0.05421 | E78: 0.05424 | F78: 0.05339 | G78: 0.04481 | H78: 0.04156 | I78: 0.03327 | J78: 0.02887 | K78: 0.02918 | L78: 0.0282 | M78: 0.0273 | N78: 0.02727 | O78: 0.02727 | P78: 0.02795 | Q78: 0.02762 | R78: 0.02836 | S78: 0.0291 | T78: 0.02911 | U78: 0.02724 | V78: 0.02498 | W78: 0.02498 | X78: 0.02497 | Y78: 0.02497 | Z78: 0.02497 | AA78: 0.02497 | AB78: 0.02497 | AC78: 0.02498023717 | AD78: 0.02496930147 | AE78: 0.02496996621 | AF78: 0.02496790918 | AG78: 0.02500390352 | AH78: 0.02498665654 | AI78: 0.02498782693 | AJ78: 0.02501637428 | AK78: 0.02502805487 | AL78: 0.02290435083 | AM78: 0.0229096049 | AN78: 0.02299890782 | AO78: 0.02332426549 | AP78: 0.02332331658 | AQ78: 0.02544070007 | AR78: 0.02696898106 | AS78: 0.02625611125 | AT78: 0.02837263432 | AU78: 0.02910938061 | AV78: 0.02835978391 | AW78: 0.02766992581 | AX78: 0.0276298562 | AY78: 0.02761330959 | AZ78: 0.02446180286 | BA78: 0.02148172956 | BB78: 0
A79: Weighted Average Maturity Date (years) | B79: 20.81 | C79: 20.57 | D79: 20.34 | E79: 20.1 | F79: 19.85 | G79: 19.6 | H79: 19.37 | I79: 19.12 | J79: 18.87 | K79: 18.62 | L79: 18.37 | M79: 18.14 | N79: 17.89 | O79: 17.64 | P79: 17.39 | Q79: 17.15 | R79: 16.89 | S79: 16.64 | T79: 16.4 | U79: 16.16 | V79: 15.91 | W79: 15.67 | X79: 15.44 | Y79: 15.21 | Z79: 14.97 | AA79: 14.72 | AB79: 14.49 | AC79: 14.23562928 | AD79: 14.00770366 | AE79: 13.76167378 | AF79: 13.53639034 | AG79: 13.29540851 | AH79: 13.07067813 | AI79: 12.8808748 | AJ79: 12.61875179 | AK79: 12.41076186 | AL79: 12.15133156 | AM79: 11.92336451 | AN79: 11.88423617 | AO79: 11.72441663 | AP79: 11.47855554 | AQ79: 11.24018892 | AR79: 10.99836368 | AS79: 10.79604894 | AT79: 10.55142613 | AU79: 10.31551478 | AV79: 10.12925026 | AW79: 9.889583715 | AX79: 9.671373903 | AY79: 9.441063509 | AZ79: 9.235201773 | BA79: 8.994197687 | BB79: 0
A80: Weighted Average Seasoning (months) | B80: 5.74 | C80: 8.73 | D80: 11.75 | E80: 14.78 | F80: 17.77 | G80: 20.73 | H80: 23.75 | I80: 26.78 | J80: 29.77 | K80: 32.73 | L80: 35.75 | M80: 38.77 | N80: 41.77 | O80: 44.72 | P80: 47.75 | Q80: 50.78 | R80: 53.77 | S80: 56.76 | T80: 59.78 | U80: 62.81 | V80: 65.8 | W80: 68.76 | X80: 71.79 | Y80: 74.81 | Z80: 77.8 | AA80: 80.76 | AB80: 83.79 | AC80: 86.81497362 | AD80: 89.80693444 | AE80: 92.76491408 | AF80: 95.7917938 | AG80: 98.81652346 | AH80: 101.8069968 | AI80: 104.7998477 | AJ80: 107.8205824 | AK80: 110.7686761 | AL80: 113.7589175 | AM80: 116.7128808 | AN80: 119.739522 | AO80: 122.7598497 | AP80: 125.7488465 | AQ80: 128.7021947 | AR80: 131.7276917 | AS80: 134.7475593 | AT80: 137.735439 | AU80: 140.697578 | AV80: 143.7171104 | AW80: 146.7392674 | AX80: 149.7306985 | AY80: 152.7235239 | AZ80: 155.7495659 | BA80: 158.7692103 | BB80: 0
A81: % of Interest Only Mortgages | B81: 0.9648 | C81: 0.9649 | D81: 0.9649 | E81: 0.9655 | F81: 0.9658 | G81: 0.9673 | H81: 0.9672 | I81: 0.9653 | J81: 0.9651 | K81: 0.9655 | L81: 0.9658 | M81: 0.9658 | N81: 0.966 | O81: 0.9657 | P81: 0.9666 | Q81: 0.9662 | R81: 0.9666 | S81: 0.9669 | T81: 0.9673 | U81: 0.9683 | V81: 0.9686 | W81: 0.9691 | X81: 0.9696 | Y81: 0.9711 | Z81: 0.9713 | AA81: 0.9717 | AB81: 0.9725 | AC81: 0.97260951 | AD81: 0.9730178659 | AE81: 0.9735629157 | AF81: 0.9747810561 | AG81: 0.9751756279 | AH81: 0.9752181095 | AI81: 0.9750154714 | AJ81: 0.9747035596 | AK81: 0.975146269 | AL81: 0.9756744998 | AM81: 0.9781278757 | AN81: 0.9779536432 | AO81: 0.9786429566 | AP81: 0.9788669258 | AQ81: 0.9794880877 | AR81: 0.9795945282 | AS81: 0.9797016711 | AT81: 0.9802163269 | AU81: 0.9813202698 | AV81: 0.981716235 | AW81: 0.9822166816 | AX81: 0.9826175598 | AY81: 0.9826370175 | AZ81: 0.9828073867 | BA81: 0.9833210103 | BB81: 0
A82: % of Repayment Mortgages | B82: 0.0352 | C82: 0.0351 | D82: 0.0351 | E82: 0.0345 | F82: 0.0342 | G82: 0.0327 | H82: 0.0328 | I82: 0.0347 | J82: 0.0349 | K82: 0.0345 | L82: 0.0342 | M82: 0.0342 | N82: 0.034 | O82: 0.0343 | P82: 0.0334 | Q82: 0.0338 | R82: 0.0334 | S82: 0.0331 | T82: 0.0327 | U82: 0.0317 | V82: 0.0314 | W82: 0.0309 | X82: 0.0304 | Y82: 0.0289 | Z82: 0.0287 | AA82: 0.0283 | AB82: 0.0275 | AC82: 0.02739049004 | AD82: 0.02698213412 | AE82: 0.02643708427 | AF82: 0.02521894388 | AG82: 0.02482437206 | AH82: 0.02478189053 | AI82: 0.0249845286 | AJ82: 0.02529644038 | AK82: 0.02485373103 | AL82: 0.02432550016 | AM82: 0.0218721243 | AN82: 0.02204635683 | AO82: 0.02135704337 | AP82: 0.02113307416 | AQ82: 0.02051191226 | AR82: 0.0204054718 | AS82: 0.02029832885 | AT82: 0.01978367307 | AU82: 0.01867973018 | AV82: 0.01828376495 | AW82: 0.01778331837 | AX82: 0.01738244022 | AY82: 0.01736298248 | AZ82: 0.01719261331 | BA82: 0.01667898973 | BB82: 0
A83: % of Mortgages in London | B83: 0.1443 | C83: 0.1435 | D83: 0.1428 | E83: 0.1442 | F83: 0.1438 | G83: 0.1438 | H83: 0.1405 | I83: 0.1409 | J83: 0.1413 | K83: 0.1411 | L83: 0.1399 | M83: 0.1373 | N83: 0.1375 | O83: 0.1379 | P83: 0.1382 | Q83: 0.137 | R83: 0.1365 | S83: 0.1362 | T83: 0.136 | U83: 0.1365 | V83: 0.1352 | W83: 0.1356 | X83: 0.1361 | Y83: 0.1353 | Z83: 0.1347 | AA83: 0.1345 | AB83: 0.1338 | AC83: 0.1323291645 | AD83: 0.1325355487 | AE83: 0.1323339585 | AF83: 0.1314712324 | AG83: 0.1313423734 | AH83: 0.1298978512 | AI83: 0.128654676 | AJ83: 0.1212222884 | AK83: 0.1209403798 | AL83: 0.1211921213 | AM83: 0.1205484211 | AN83: 0.1153134317 | AO83: 0.1137851637 | AP83: 0.1133687399 | AQ83: 0.1122355263 | AR83: 0.1136454907 | AS83: 0.1141060203 | AT83: 0.114912665 | AU83: 0.1166880982 | AV83: 0.1167898073 | AW83: 0.1148968421 | AX83: 0.1135566549 | AY83: 0.1149398963 | AZ83: 0.1138978897 | BA83: 0.1145107508 | BB83: 0
A84: % of Mortgages in the South East | B84: 0.224 | C84: 0.2246 | D84: 0.2242 | E84: 0.2238 | F84: 0.2239 | G84: 0.2239 | H84: 0.2249 | I84: 0.2247 | J84: 0.2247 | K84: 0.2247 | L84: 0.2245 | M84: 0.2254 | N84: 0.2252 | O84: 0.2254 | P84: 0.2251 | Q84: 0.2254 | R84: 0.2261 | S84: 0.2265 | T84: 0.2259 | U84: 0.2261 | V84: 0.2263 | W84: 0.2265 | X84: 0.2263 | Y84: 0.2253 | Z84: 0.2247 | AA84: 0.2247 | AB84: 0.2242 | AC84: 0.2230986702 | AD84: 0.2210209528 | AE84: 0.2213375992 | AF84: 0.2201989464 | AG84: 0.2192294713 | AH84: 0.2175720731 | AI84: 0.2162864903 | AJ84: 0.2154014489 | AK84: 0.2149639664 | AL84: 0.2134929726 | AM84: 0.2122130464 | AN84: 0.2129234648 | AO84: 0.2118029513 | AP84: 0.2121727109 | AQ84: 0.2106772863 | AR84: 0.2078962675 | AS84: 0.2079866053 | AT84: 0.20723012 | AU84: 0.2034658301 | AV84: 0.1995467287 | AW84: 0.1989677764 | AX84: 0.1981491809 | AY84: 0.1988033064 | AZ84: 0.1946981911 | BA84: 0.1942003944 | BB84: 0
A85: % of Owner Occupied Mortgages | B85: 0 | C85: 0 | D85: 0 | E85: 0 | F85: 0 | G85: 0 | H85: 0 | I85: 0 | J85: 0 | K85: 0 | L85: 0 | M85: 0 | N85: 0 | O85: 0 | P85: 0 | Q85: 0 | R85: 0 | S85: 0 | T85: 0 | U85: 0 | V85: 0 | W85: 0 | X85: 0 | Y85: 0 | Z85: 0 | AA85: 0 | AB85: 0 | AC85: 0 | AD85: 0 | AE85: 0 | AF85: 0 | AG85: 0 | AH85: 0 | AI85: 0 | AJ85: 0 | AK85: 0 | AL85: 0 | AM85: 0 | AN85: 0 | AO85: 0 | AP85: 0 | AQ85: 0 | AR85: 0 | AS85: 0 | AT85: 0 | AU85: 0 | AV85: 0 | AW85: 0 | AX85: 0 | AY85: 0 | AZ85: 0 | BA85: 0 | BB85: 0
A86: % of Investment Home Loans - Professional Landlords | B86: 0.7382 | C86: 0.7391 | D86: 0.7405 | E86: 0.7404 | F86: 0.7408 | G86: 0.7411 | H86: 0.7409 | I86: 0.7418 | J86: 0.743 | K86: 0.7439 | L86: 0.7449 | M86: 0.7436 | N86: 0.7444 | O86: 0.7447 | P86: 0.7452 | Q86: 0.747 | R86: 0.7477 | S86: 0.7477 | T86: 0.7483 | U86: 0.7485 | V86: 0.7482 | W86: 0.7481 | X86: 0.7498 | Y86: 0.7516 | Z86: 0.7512 | AA86: 0.7522 | AB86: 0.7539 | AC86: 0.7550597626 | AD86: 0.7558740784 | AE86: 0.7565080185 | AF86: 0.7593592151 | AG86: 0.7599762597 | AH86: 0.7610236389 | AI86: 0.7626841623 | AJ86: 0.7618331565 | AK86: 0.7617010669 | AL86: 0.762800749 | AM86: 0.7656958833 | AN86: 0.7662053464 | AO86: 0.7673807842 | AP86: 0.7706647742 | AQ86: 0.7724195852 | AR86: 0.7751644102 | AS86: 0.7801177012 | AT86: 0.781430582 | AU86: 0.7837548124 | AV86: 0.7858380498 | AW86: 0.7891446198 | AX86: 0.7892584333 | AY86: 0.7908299348 | AZ86: 0.7921242191 | BA86: 0.7925874579 | BB86: 0
A87: % of Investment Home Loans - Emerging Professional Landlords | B87: 0.2618 | C87: 0.2609 | D87: 0.2595 | E87: 0.2596 | F87: 0.2592 | G87: 0.2589 | H87: 0.2591 | I87: 0.2582 | J87: 0.257 | K87: 0.2561 | L87: 0.2551 | M87: 0.2564 | N87: 0.2556 | O87: 0.2553 | P87: 0.2548 | Q87: 0.253 | R87: 0.2523 | S87: 0.2523 | T87: 0.2517 | U87: 0.2515 | V87: 0.2518 | W87: 0.2519 | X87: 0.2502 | Y87: 0.2484 | Z87: 0.2488 | AA87: 0.2478 | AB87: 0.2461 | AC87: 0.2449402374 | AD87: 0.2441259216 | AE87: 0.2434919815 | AF87: 0.2406407849 | AG87: 0.2400237403 | AH87: 0.2389763611 | AI87: 0.2373158377 | AJ87: 0.2381668435 | AK87: 0.2382989331 | AL87: 0.237199251 | AM87: 0.2343041167 | AN87: 0.2337946536 | AO87: 0.2326192158 | AP87: 0.2293352258 | AQ87: 0.2275804148 | AR87: 0.2248355898 | AS87: 0.2198822988 | AT87: 0.218569418 | AU87: 0.2162451876 | AV87: 0.2141619502 | AW87: 0.2108553802 | AX87: 0.2107415667 | AY87: 0.2091700652 | AZ87: 0.2078757809 | BA87: 0.2074125421 | BB87: 0
A88: Weighted Average Interest Coverage Ratio (calculated at the origination date) | B88: 1.57 | C88: 1.58 | D88: 1.58 | E88: 1.58 | F88: 1.58 | G88: 1.58 | H88: 1.58 | I88: 1.58 | J88: 1.58 | K88: 1.58 | L88: 1.58 | M88: 1.58 | N88: 1.58 | O88: 1.58 | P88: 1.58 | Q88: 1.58 | R88: 1.58 | S88: 1.58 | T88: 1.58 | U88: 1.58 | V88: 1.58 | W88: 1.58 | X88: 1.58 | Y88: 1.58 | Z88: 1.58 | AA88: 1.58 | AB88: 1.58 | AC88: 1.582041262 | AD88: 1.583430405 | AE88: 1.583965883 | AF88: 1.58372093 | AG88: 1.584555459 | AH88: 1.585528288 | AI88: 1.586695722 | AJ88: 1.588386097 | AK88: 1.589657816 | AL88: 1.588973215 | AM88: 1.589259514 | AN88: 1.586300416 | AO88: 1.587663785 | AP88: 1.587464746 | AQ88: 1.588451459 | AR88: 1.588326726 | AS88: 1.587961238 | AT88: 1.589676732 | AU88: 1.588464544 | AV88: 1.584110309 | AW88: 1.58586294 | AX88: 1.587869309 | AY88: 1.589151312 | AZ88: 1.590200034 | BA88: 1.591086461 | BB88: 0
A89: PML Lifetime Redemption Rate | B89: 0.0371 | C89: 0.0365 | D89: 0.0341 | E89: 0.0326 | F89: 0.0278 | G89: 0.024 | H89: 0.0234 | I89: 0.0225 | J89: 0.0221 | K89: 0.0213 | L89: 0.0212 | M89: 0.0221 | N89: 0.0221 | O89: 0.0215 | P89: 0.0209 | Q89: 0.0207 | R89: 0.0206 | S89: 0.0204 | T89: 0.02 | U89: 0.0198 | V89: 0.0199 | W89: 0.0196 | X89: 0.0195 | Y89: 0.0203 | Z89: 0.0209 | AA89: 0.0206 | AB89: 0.0208 | AC89: 0.0218 | AD89: 0.022 | AE89: 0.0224 | AF89: 0.0229 | AG89: 0.0232 | AH89: 0.0238 | AI89: 0.0241 | AJ89: 0.0262 | AK89: 0.0265 | AL89: 0.027 | AM89: 0.0275 | AN89: 0.0283 | AO89: 0.0293 | AP89: 0.0297 | AQ89: 0.0301 | AR89: 0.0307 | AS89: 0.0315 | AT89: 0.0317 | AU89: 0.0325 | AV89: 0.0331 | AW89: 0.0337 | AX89: 0.0343 | AY89: 0.0347 | AZ89: 0.0352 | BA89: 0.0351 | BB89: 1
A90: Number of Properties in Possession | B90: 0 | C90: 0 | D90: 0 | E90: 0 | F90: 0 | G90: 0 | H90: 0 | I90: 0 | J90: 0 | K90: 0 | L90: 0 | M90: 0 | N90: 0 | O90: 0 | P90: 0 | Q90: 0 | R90: 0 | S90: 0 | T90: 0 | U90: 0 | V90: 0 | W90: 0 | X90: 0 | Y90: 0 | Z90: 0 | AA90: 0 | AB90: 0 | AC90: 1 | AD90: 0 | AE90: 0 | AF90: 0 | AG90: 0 | AH90: 0 | AI90: 0 | AJ90: 0 | AK90: 0 | AL90: 0 | AM90: 0 | AN90: 0 | AO90: 0 | AP90: 0 | AQ90: 0 | AR90: 1 | AS90: 1 | AT90: 1 | AU90: 1 | AV90: 1 | AW90: 1 | AX90: 1 | AY90: 1 | AZ90: 1 | BA90: 1 | BB90: 0
A91: Appointment of a Receiver of Rent | B91: 1 | C91: 11 | D91: 5 | E91: 24 | F91: 36 | G91: 58 | H91: 69 | I91: 113 | J91: 113 | K91: 105 | L91: 97 | M91: 93 | N91: 90 | O91: 89 | P91: 89 | Q91: 82 | R91: 92 | S91: 80 | T91: 80 | U91: 77 | V91: 75 | W91: 70 | X91: 67 | Y91: 73 | Z91: 66 | AA91: 64 | AB91: 64 | AC91: 59 | AD91: 57 | AE91: 53 | AF91: 52 | AG91: 54 | AH91: 50 | AI91: 49 | AJ91: 44 | AK91: 43 | AL91: 42 | AM91: 44 | AN91: 42 | AO91: 39 | AP91: 35 | AQ91: 36 | AR91: 36 | AS91: 37 | AT91: 38 | AU91: 31 | AV91: 29 | AW91: 39 | AX91: 33 | AY91: 33 | AZ91: 33 | BA91: 30 | BB91: 0
A92: PML Quarterly Losses | B92: 0 | C92: 0 | D92: 0 | E92: 111 | F92: 0 | G92: 24 | H92: 1 | I92: 3 | J92: 90 | K92: 99 | L92: 753 | M92: 215 | N92: 213 | O92: 466 | P92: 285 | Q92: 8 | R92: 458 | S92: 252 | T92: -4 | U92: 181 | V92: 245 | W92: 266 | X92: 192 | Y92: 271 | Z92: 353 | AA92: 63 | AB92: 107 | AC92: 631 | AD92: 84 | AE92: 120 | AF92: 161 | AG92: 0 | AH92: 80 | AI92: -41 | AJ92: 73 | AK92: 119 | AL92: 32 | AM92: 48 | AN92: 78 | AO92: 260 | AP92: 374 | AQ92: 146 | AR92: -9 | AS92: 155 | AT92: 48 | AU92: 264 | AV92: 108 | AW92: 39 | AX92: 141 | AY92: 388 | AZ92: 1 | BA92: -1 | BB92: 0
A93: Arrears excluding Receiver of Rent and Possession Cases
A94: Performing Loans | B94: 0.9988 | C94: 0.9975 | D94: 0.9962 | E94: 0.9924 | F94: 0.9832 | G94: 0.9869 | H94: 0.9806 | I94: 0.9785 | J94: 0.9825 | K94: 0.9825 | L94: 0.9911 | M94: 0.9923 | N94: 0.9932 | O94: 0.9881 | P94: 0.9892 | Q94: 0.9912 | R94: 0.9926 | S94: 0.9853 | T94: 0.9857 | U94: 0.9901 | V94: 0.9891 | W94: 0.9908 | X94: 0.9905 | Y94: 0.9964 | Z94: 0.9951 | AA94: 0.9958 | AB94: 0.9963 | AC94: 0.9967397494 | AD94: 0.998554237 | AE94: 0.9976431476 | AF94: 0.9974933622 | AG94: 0.9966473764 | AH94: 0.9989097478 | AI94: 0.9967210369 | AJ94: 0.9970987014 | AK94: 0.9984559928 | AL94: 0.9986112235 | AM94: 1 | AN94: 0.9966376584 | AO94: 0.9980759846 | AP94: 0.9976928171 | AQ94: 0.9982435532 | AR94: 0.9953035076 | AS94: 0.9955046733 | AT94: 0.9924925074 | AU94: 0.9927969876 | AV94: 0.986053788 | AW94: 0.9878821333 | AX94: 0.9869562463 | AY94: 0.9914460421 | AZ94: 0.9931470645 | BA94: 0.9970416254 | BB94: 0
A95: >1 to 2 months arrears | B95: 0.0004 | C95: 0.0009 | D95: 0.0024 | E95: 0.0049 | F95: 0.0101 | G95: 0.0066 | H95: 0.0139 | I95: 0.0149 | J95: 0.0116 | K95: 0.0066 | L95: 0.0052 | M95: 0.0058 | N95: 0.0055 | O95: 0.0092 | P95: 0.0064 | Q95: 0.0077 | R95: 0.0071 | S95: 0.0131 | T95: 0.0131 | U95: 0.0083 | V95: 0.0096 | W95: 0.0068 | X95: 0.0063 | Y95: 0.0003 | Z95: 0.0021 | AA95: 0.0012 | AB95: 0.0009 | AC95: 0.000168750539 | AD95: 0 | AE95: 0.001294560461 | AF95: 0.001434397527 | AG95: 0.001783820241 | AH95: 0 | AI95: 0.002439447839 | AJ95: 0.0007791822159 | AK95: 0.0004713172463 | AL95: 0.0005111336077 | AM95: 0 | AN95: 0.003362341604 | AO95: 0.001755818682 | AP95: 0.002136872677 | AQ95: 0.001584278039 | AR95: 0.004366942703 | AS95: 0.003371428598 | AT95: 0.003875184467 | AU95: 0.003794995048 | AV95: 0.01219777142 | AW95: 0.01098023571 | AX95: 0.008830212544 | AY95: 0.006037454075 | AZ95: 0.004787075196 | BA95: 0.0004324908434 | BB95: 0
A96: >2 to 3 months arrears | B96: 0.0008 | C96: 0.0013 | D96: 0.0011 | E96: 0.0022 | F96: 0.0051 | G96: 0.0036 | H96: 0.0016 | I96: 0.0031 | J96: 0.0032 | K96: 0.0092 | L96: 0.0013 | M96: 0 | N96: 0.0011 | O96: 0.0027 | P96: 0.0044 | Q96: 0.0011 | R96: 0 | S96: 0.0014 | T96: 0.001 | U96: 0.0002 | V96: 0 | W96: 0.001 | X96: 0.0017 | Y96: 0.0006 | Z96: 0 | AA96: 0.0003 | AB96: 0.0002 | AC96: 0.001168986836 | AD96: 0 | AE96: 0 | AF96: 0 | AG96: 0.0004876538779 | AH96: 0.0002571002967 | AI96: 0 | AJ96: 0.001261963627 | AK96: 0 | AL96: 0.0008776428513 | AM96: 0 | AN96: 0 | AO96: 0 | AP96: 0 | AQ96: 0 | AR96: 0.0003295496663 | AS96: 0.001123898074 | AT96: 0.003632308127 | AU96: 0.002788500922 | AV96: 0.001748440543 | AW96: 0.0009214847804 | AX96: 0.003835006125 | AY96: 0.002516503813 | AZ96: 0.001313439842 | BA96: 0.0003632210695 | BB96: 0
A97: >3 months arrears | B97: 0 | C97: 0.0003 | D97: 0.0003 | E97: 0.0005 | F97: 0.0016 | G97: 0.0029 | H97: 0.0039 | I97: 0.0035 | J97: 0.0027 | K97: 0.0017 | L97: 0.0024 | M97: 0.0019 | N97: 0.0002 | O97: 0 | P97: 0 | Q97: 0 | R97: 0.0003 | S97: 0.0002 | T97: 0.0002 | U97: 0.0014 | V97: 0.0013 | W97: 0.0014 | X97: 0.0015 | Y97: 0.0027 | Z97: 0.0028 | AA97: 0.0027 | AB97: 0.0026 | AC97: 0.001922513255 | AD97: 0.001445762998 | AE97: 0.001062291948 | AF97: 0.001072240298 | AG97: 0.00108114945 | AH97: 0.0008331519366 | AI97: 0.0008395152924 | AJ97: 0.000860152807 | AK97: 0.001072689919 | AL97: 0 | AM97: 0 | AN97: 0 | AO97: 0.0001681966933 | AP97: 0.0001703101852 | AQ97: 0.0001721687911 | AR97: 0 | AS97: 0 | AT97: 0 | AU97: 0.0006195164384 | AV97: 0 | AW97: 0.0002161462026 | AX97: 0.0003785350062 | AY97: 0 | AZ97: 0.0007524204772 | BA97: 0.002162662644 | BB97: 0
A98: Total | B98: =SUM(B94:B97) -> 1 | C98: 1 | D98: 1 | E98: 1 | F98: 1 | G98: 1 | H98: 1 | I98: 1 | J98: 1 | K98: 1 | L98: 1 | M98: 1 | N98: 1 | O98: 1 | P98: 1 | Q98: 1 | R98: 1 | S98: =SUM(S94:S97) -> 1 | T98: 1 | U98: 1 | V98: 1 | W98: 1 | X98: 1 | Y98: =SUM(Y94:Y97) -> 1 | Z98: =SUM(Z94:Z97) -> 1 | AA98: =SUM(AA94:AA97) -> 1 | AB98: =SUM(AB94:AB97) -> 1 | AC98: =SUM(AC94:AC97) -> 1 | AD98: 1 | AE98: 1 | AF98: 1 | AG98: 1 | AH98: 1 | AI98: 1 | AJ98: 1 | AK98: 1 | AL98: 1 | AM98: 1 | AN98: 1 | AO98: 1 | AP98: 1 | AQ98: 1 | AR98: 1 | AS98: 1 | AT98: 1 | AU98: 1 | AV98: 1 | AW98: 1 | AX98: 1 | AY98: 1 | AZ98: 1 | BA98: 1 | BB98: =SUM(BB94:BB97) -> 0
A100: Underlying Assets - Mortgage Trust Originated Assets | B100: 2007-11-30 | C100: 2008-02-29 | D100: 2008-05-30 | E100: 2008-08-31 | F100: 2008-11-28 | G100: 2009-02-27 | H100: 2009-05-29 | I100: 2009-08-28 | J100: 2009-11-30 | K100: 2010-02-26 | L100: 2010-05-28 | M100: 2010-08-31 | N100: 2010-11-30 | O100: 2011-02-28 | P100: 2011-05-31 | Q100: 2011-08-31 | R100: 2011-11-30 | S100: 2012-02-29 | T100: 2012-05-31 | U100: 2012-08-31 | V100: 2012-11-30 | W100: 2013-02-28 | X100: 2013-05-31 | Y100: 2013-08-30 | Z100: 2013-11-29 | AA100: 2014-02-28 | AB100: 2014-05-30 | AC100: 2014-08-29 | AD100: 2014-11-28 | AE100: 2015-02-27 | AF100: =+AF69 -> 2015-05-29 | AG100: 2015-08-28 | AH100: 2015-11-30 | AI100: 2016-02-29 | AJ100: 2016-05-31 | AK100: 2016-08-31 | AL100: =+AL69 -> 2016-11-30 | AM100: 2017-02-28 | AN100: =+AN69 -> 2017-05-31 | AO100: 2017-08-31 | AP100: =+AP69 -> 2017-11-30 | AQ100: 2018-02-28 | AR100: =+AR69 -> 2018-05-31 | AS100: 2018-08-31 | AT100: =+AT69 -> 2018-11-30 | AU100: 2019-02-28 | AV100: =+AV69 -> 2019-05-31 | AW100: 2019-08-30 | AX100: =+AX69 -> 2019-11-29 | AY100: 2020-02-28 | AZ100: =+AZ69 -> 2020-05-29 | BA100: 2020-08-28 | BB100: =+BB69 -> 2020-11-30
A101: Weighted Average LTV | B101: 0.7867 | C101: 0.7867 | D101: 0.7867 | E101: 0.7876 | F101: 0.7878 | G101: 0.789 | H101: 0.7901 | I101: 0.7903 | J101: 0.7902 | K101: 0.7902 | L101: 0.7906 | M101: 0.7906 | N101: 0.7903 | O101: 0.7901 | P101: 0.7901 | Q101: 0.7897 | R101: 0.7895 | S101: 0.7896 | T101: 0.7894 | U101: 0.789 | V101: 0.7886 | W101: 0.7882 | X101: 0.7882 | Y101: 0.7882 | Z101: 0.7877 | AA101: 0.787 | AB101: 0.7861 | AC101: 0.7857065675 | AD101: 0.7855825804 | AE101: 0.7847667528 | AF101: 0.784446495 | AG101: 0.783935102 | AH101: 0.7835552867 | AI101: 0.7831398454 | AJ101: 0.7827828289 | AK101: 0.7827521622 | AL101: 0.7822476768 | AM101: 0.7820499366 | AN101: 0.7815103912 | AO101: 0.7820697761 | AP101: 0.781703445 | AQ101: 0.7812914705 | AR101: 0.7808898732 | AS101: 0.7803611324 | AT101: 0.7797999963 | AU101: 0.7791245544 | AV101: 0.7787172783 | AW101: 0.7787848429 | AX101: 0.7787237472 | AY101: 0.7792275079 | AZ101: 0.779184342 | BA101: 0.7787352597 | BB101: 0
A102: Weighted Average Nationwide Indexed LTV | B102: 0.7624 | C102: 0.7642 | D102: 0.7808 | E102: 0.8076 | F102: 0.8738 | G102: 0.9006 | H102: 0.9494 | I102: 0.9164 | J102: 0.8814 | K102: 0.8684 | L102: 0.8615 | M102: 0.8423 | N102: 0.8354 | O102: 0.8593 | P102: 0.8562 | Q102: 0.8412 | R102: 0.8448 | S102: 0.8498 | T102: 0.8618 | U102: 0.8481 | V102: 0.8465 | W102: 0.8542 | X102: 0.8525 | Y102: 0.8325 | Z102: 0.8116 | AA102: 0.7932 | AB102: 0.7776 | AC102: 0.7396196724 | AD102: 0.7327249161 | AE102: 0.732649098 | AF102: 0.734711194 | AG102: 0.7121208374 | AH102: 0.7064808054 | AI102: 0.7035414801 | AJ102: 0.6986465713 | AK102: 0.6790525551 | AL102: 0.6729286002 | AM102: 0.6730361812 | AN102: 0.6689187533 | AO102: 0.6600359852 | AP102: 0.6567863587 | AQ102: 0.6568698792 | AR102: 0.6548524265 | AS102: 0.6487503631 | AT102: 0.6452939635 | AU102: 0.6493090466 | AV102: 0.6542597966 | AW102: 0.6450161158 | AX102: 0.6441700623 | AY102: 0.6488561837 | AZ102: 0.6423991348 | BA102: 0.635334956 | BB102: 0
A103: Weighted Average Halifax Indexed LTV | B103: 0.7646 | C103: 0.7839 | D103: 0.8003 | E103: 0.8222 | F103: 0.8826 | G103: 0.9438 | H103: 0.9834 | I103: 0.9779 | J103: 0.9482 | K103: 0.9247 | L103: 0.9175 | M103: 0.9044 | N103: 0.9189 | O103: 0.93 | P103: 0.9416 | Q103: 0.9353 | R103: 0.9304 | S103: 0.9304 | T103: 0.9343 | U103: 0.9318 | V103: 0.9305 | W103: 0.9326 | X103: 0.9149 | Y103: 0.89 | Z103: 0.8718 | AA103: 0.8641 | AB103: 0.8436 | AC103: 0.8106739522 | AD103: 0.7827451752 | AE103: 0.7908091453 | AF103: 0.7739409395 | AG103: 0.735765999 | AH103: 0.7255888715 | AI103: 0.7262279175 | AJ103: 0.6975598838 | AK103: 0.679381705 | AL103: n/a | AM103: n/a | AN103: n/a | AO103: n/a | AP103: n/a | AQ103: n/a | AR103: n/a | AS103: n/a | AT103: n/a | AU103: n/a | AV103: n/a | AW103: n/a | AX103: n/a | AY103: n/a | AZ103: n/a | BA103: n/a | BB103: n/a
A104: % of Variable Rate Mortgages | B104: 0 | C104: 0 | D104: 0 | E104: 0 | F104: 0 | G104: 0 | H104: 0 | I104: 0 | J104: 0 | K104: 0 | L104: 0 | M104: 0 | N104: 0 | O104: 0 | P104: 0 | Q104: 0 | R104: 0 | S104: 0 | T104: 0 | U104: 0 | V104: 0 | W104: 0 | X104: 0 | Y104: 0 | Z104: 0 | AA104: 0 | AB104: 0 | AC104: 0 | AD104: 0 | AE104: 0 | AF104: 0 | AG104: 0 | AH104: 0 | AI104: 0 | AJ104: 0 | AK104: 0 | AL104: 0 | AM104: 0 | AN104: 0 | AO104: 0 | AP104: 0 | AQ104: 0 | AR104: 0 | AS104: 0 | AT104: 0 | AU104: 0 | AV104: 0 | AW104: 0 | AX104: 0 | AY104: 0 | AZ104: 0 | BA104: 0 | BB104: 0
A105: % of Fixed Rate Mortgages | B105: 0.8838 | C105: 0.8832 | D105: 0.8797 | E105: 0.602 | F105: 0.5385 | G105: 0.4019 | H105: 0.3121 | I105: 0.1505 | J105: 0.099 | K105: 0.1 | L105: 0.0956 | M105: 0.0485 | N105: 0.0478 | O105: 0.0395 | P105: 0.0305 | Q105: 0.0031 | R105: 0.0006 | S105: 0.0006 | T105: 0.0006 | U105: 0.0003 | V105: 0.0003 | W105: 0.0003 | X105: 0.0003 | Y105: 0 | Z105: 0 | AA105: 0 | AB105: 0 | AC105: 0 | AD105: 0 | AE105: 0 | AF105: 0 | AG105: 0 | AH105: 0 | AI105: 0 | AJ105: 0 | AK105: 0 | AL105: 0 | AM105: 0 | AN105: 0 | AO105: 0 | AP105: 0 | AQ105: 0 | AR105: 0 | AS105: 0 | AT105: 0 | AU105: 0 | AV105: 0 | AW105: 0 | AX105: 0 | AY105: 0 | AZ105: 0 | BA105: 0 | BB105: 0
A106: % of Base Rate Mortgages | B106: 0.1099 | C106: 0.1057 | D106: 0.1015 | E106: 0.1089 | F106: 0.1133 | G106: 0.1162 | H106: 0.1222 | I106: 0.1222 | J106: 0.1231 | K106: 0.1225 | L106: 0.1214 | M106: 0.1219 | N106: 0.1221 | O106: 0.1219 | P106: 0.122 | Q106: 0.1226 | R106: 0.1237 | S106: 0.1246 | T106: 0.1252 | U106: 0.1257 | V106: 0.1254 | W106: 0.1244 | X106: 0.1237 | Y106: 0.1243 | Z106: 0.1238 | AA106: 0.1249 | AB106: 0.1264 | AC106: 0.1253738174 | AD106: 0.1257510082 | AE106: 0.1263029229 | AF106: 0.1276395144 | AG106: 0.1276685163 | AH106: 0.1284975871 | AI106: 0.1284843326 | AJ106: 0.1294079776 | AK106: 0.1306566509 | AL106: 0.1321631692 | AM106: 0.1324761745 | AN106: 0.1337416545 | AO106: 0.1344330897 | AP106: 0.1346150859 | AQ106: 0.1353621717 | AR106: 0.1364965195 | AS106: 0.1342271103 | AT106: 0.1367593575 | AU106: 0.1353913213 | AV106: 0.1345122846 | AW106: 0.1346802555 | AX106: 0.1304997595 | AY106: 0.1321857048 | AZ106: 0.1301825326 | BA106: 0.1321002324 | BB106: 0
A107: % of Libor Linked Mortgages | B107: 0.0063 | C107: 0.0112 | D107: 0.0188 | E107: 0.2891 | F107: 0.3481 | G107: 0.4819 | H107: 0.5657 | I107: 0.7273 | J107: 0.778 | K107: 0.7775 | L107: 0.7829 | M107: 0.8296 | N107: 0.8301 | O107: 0.8386 | P107: 0.8475 | Q107: 0.8744 | R107: 0.8757 | S107: 0.8749 | T107: 0.8742 | U107: 0.8741 | V107: 0.8743 | W107: 0.8753 | X107: 0.876 | Y107: 0.8757 | Z107: 0.8762 | AA107: 0.8751 | AB107: 0.8736 | AC107: 0.8746261826 | AD107: 0.8742489918 | AE107: 0.8736970771 | AF107: 0.8723604856 | AG107: 0.8723314837 | AH107: 0.8715024129 | AI107: 0.8715156674 | AJ107: 0.8705920224 | AK107: 0.8693433491 | AL107: 0.8678368308 | AM107: 0.8675238255 | AN107: 0.8662583455 | AO107: 0.8655669103 | AP107: 0.8653849141 | AQ107: 0.8646378283 | AR107: 0.8635034805 | AS107: 0.8657728897 | AT107: 0.8632406425 | AU107: 0.8646086787 | AV107: 0.8654877154 | AW107: 0.8653197445 | AX107: 0.8695002405 | AY107: 0.8678142952 | AZ107: 0.8698174674 | BA107: 0.8678997676 | BB107: 0
A108: Weighted Average Loan Size | B108: 151549.5 | C108: 151679.2 | D108: 151595.65 | E108: 150188.45 | F108: 149092.57 | G108: 148170.86 | H108: 147749.17 | I108: 147469.75 | J108: 147279.81 | K108: 146979.45 | L108: 146695.84 | M108: 146596.67 | N108: 146524.78 | O108: 146358.62 | P108: 146123.53 | Q108: 145811.63 | R108: 145200.33 | S108: 144868.06 | T108: 144835.36 | U108: 144407.12 | V108: 143919.71 | W108: 143868.92 | X108: 143432.79 | Y108: 143265.11 | Z108: 142619.22 | AA108: 142132.73 | AB108: 141527.12 | AC108: 141227.9961 | AD108: 140901.8063 | AE108: 140562.7144 | AF108: 140416.3622 | AG108: 140237.2295 | AH108: 140017.4969 | AI108: 139854.4166 | AJ108: 139646.5522 | AK108: 138663.2892 | AL108: 138484.2273 | AM108: 138238.5188 | AN108: 138226.2301 | AO108: 137874.6797 | AP108: 137634.0676 | AQ108: 137492.724 | AR108: 136992.7743 | AS108: 136354.1006 | AT108: 135606.6441 | AU108: 135119.6797 | AV108: 134777.9757 | AW108: 134253.1843 | AX108: 133639.6953 | AY108: 133856.9038 | AZ108: 133605.0381 | BA108: 133279.1084 | BB108: 0
A109: Weighted Average Interest Rate | B109: 0.05242 | C109: 0.05227 | D109: 0.05195 | E109: 0.06139 | F109: 0.06235 | G109: 0.05314 | H109: 0.04179 | I109: 0.03379 | J109: 0.02789 | K109: 0.02745 | L109: 0.02782 | M109: 0.02754 | N109: 0.02761 | O109: 0.02757 | P109: 0.02794 | Q109: 0.02752 | R109: 0.028 | S109: 0.02931 | T109: 0.02945 | U109: 0.02888 | V109: 0.02618 | W109: 0.02478 | X109: 0.02466 | Y109: 0.02465 | Z109: 0.02474 | AA109: 0.0248 | AB109: 0.0248 | AC109: 0.02490117916 | AD109: 0.02515534838 | AE109: 0.02508040346 | AF109: 0.02516049366 | AG109: 0.02523604269 | AH109: 0.02539173999 | AI109: 0.025280333 | AJ109: 0.02541909457 | AK109: 0.0253968965 | AL109: 0.02330582115 | AM109: 0.02330445902 | AN109: 0.02310033217 | AO109: 0.02297973648 | AP109: 0.02282508231 | AQ109: 0.02526921119 | AR109: 0.02579618966 | AS109: 0.02614541299 | AT109: 0.02805719658 | AU109: 0.02889091301 | AV109: 0.02850447661 | AW109: 0.02801531306 | AX109: 0.02773635054 | AY109: 0.02792099917 | AZ109: 0.02544180814 | BA109: 0.02206320173 | BB109: 0
A110: Weighted Average Maturity Date (years) | B110: 20.67 | C110: 20.43 | D110: 20.18 | E110: 19.9 | F110: 19.7 | G110: 19.48 | H110: 19.23 | I110: 19 | J110: 18.74 | K110: 18.49 | L110: 18.25 | M110: 18.03 | N110: 17.77 | O110: 17.53 | P110: 17.27 | Q110: 17.03 | R110: 16.76 | S110: 16.53 | T110: 16.31 | U110: 16.07 | V110: 15.84 | W110: 15.61 | X110: 15.36 | Y110: 15.14 | Z110: 14.89 | AA110: 14.63 | AB110: 14.38 | AC110: 14.14214573 | AD110: 13.90856552 | AE110: 13.66518419 | AF110: 13.43994617 | AG110: 13.19269133 | AH110: 12.94807254 | AI110: 12.7184827 | AJ110: 12.47384443 | AK110: 12.25373588 | AL110: 12.04157552 | AM110: 11.84739589 | AN110: 11.87327319 | AO110: 11.74510462 | AP110: 11.53735758 | AQ110: 11.27974485 | AR110: 11.09517066 | AS110: 10.87263111 | AT110: 10.59221922 | AU110: 10.32989361 | AV110: 10.13061026 | AW110: 9.912018859 | AX110: 9.671199739 | AY110: 9.458344555 | AZ110: 9.226249363 | BA110: 8.983855081 | BB110: 0
A111: Weighted Average Seasoning (months) | B111: 5.75 | C111: 8.74 | D111: 11.76 | E111: 14.79 | F111: 17.79 | G111: 20.75 | H111: 23.78 | I111: 26.8 | J111: 29.79 | K111: 32.75 | L111: 35.77 | M111: 38.79 | N111: 41.79 | O111: 44.75 | P111: 47.77 | Q111: 50.8 | R111: 53.79 | S111: 56.77 | T111: 59.8 | U111: 62.82 | V111: 65.82 | W111: 68.78 | X111: 71.8 | Y111: 74.82 | Z111: 77.81 | AA111: 80.77 | AB111: 83.8 | AC111: 86.82973925 | AD111: 89.81531739 | AE111: 92.77569514 | AF111: 95.79725369 | AG111: 98.82760737 | AH111: 101.820624 | AI111: 104.8172328 | AJ111: 107.8447526 | AK111: 110.7934847 | AL111: 113.7788683 | AM111: 116.7408904 | AN111: 119.7656895 | AO111: 122.7834149 | AP111: 125.7701768 | AQ111: 128.7263218 | AR111: 131.7506141 | AS111: 134.7763362 | AT111: 137.7664225 | AU111: 140.726453 | AV111: 143.7465319 | AW111: 146.7714337 | AX111: 149.7568059 | AY111: 152.7522121 | AZ111: 155.769151 | BA111: 158.7979366 | BB111: 0
A112: % of Interest Only Mortgages | B112: 0.9644 | C112: 0.964 | D112: 0.9634 | E112: 0.9625 | F112: 0.9616 | G112: 0.9626 | H112: 0.963 | I112: 0.9626 | J112: 0.9626 | K112: 0.962 | L112: 0.9619 | M112: 0.9616 | N112: 0.9625 | O112: 0.9631 | P112: 0.9628 | Q112: 0.9632 | R112: 0.9631 | S112: 0.9647 | T112: 0.9655 | U112: 0.966 | V112: 0.9658 | W112: 0.9663 | X112: 0.9671 | Y112: 0.9675 | Z112: 0.9674 | AA112: 0.9679 | AB112: 0.968 | AC112: 0.9681037879 | AD112: 0.9680052523 | AE112: 0.9673264779 | AF112: 0.9672534767 | AG112: 0.9677060561 | AH112: 0.9678104595 | AI112: 0.968919282 | AJ112: 0.9692872169 | AK112: 0.9694246224 | AL112: 0.9701877712 | AM112: 0.9712651049 | AN112: 0.9714080879 | AO112: 0.9714520923 | AP112: 0.9729343108 | AQ112: 0.9736349324 | AR112: 0.9745028432 | AS112: 0.9744927245 | AT112: 0.9722860693 | AU112: 0.9723948018 | AV112: 0.9728936225 | AW112: 0.9741001955 | AX112: 0.975003065 | AY112: 0.9753923199 | AZ112: 0.9758691981 | BA112: 0.9782864403 | BB112: 0
A113: % of Repayment Mortgages | B113: 0.0356 | C113: 0.036 | D113: 0.0366 | E113: 0.0375 | F113: 0.0384 | G113: 0.0374 | H113: 0.037 | I113: 0.0374 | J113: 0.0374 | K113: 0.038 | L113: 0.0381 | M113: 0.0384 | N113: 0.0375 | O113: 0.0369 | P113: 0.0372 | Q113: 0.0368 | R113: 0.0369 | S113: 0.0353 | T113: 0.0345 | U113: 0.034 | V113: 0.0342 | W113: 0.0337 | X113: 0.0329 | Y113: 0.0325 | Z113: 0.0326 | AA113: 0.0321 | AB113: 0.032 | AC113: 0.03189621213 | AD113: 0.03199474768 | AE113: 0.03267352208 | AF113: 0.03274652333 | AG113: 0.03229394389 | AH113: 0.03218954054 | AI113: 0.03108071796 | AJ113: 0.03071278312 | AK113: 0.03057537756 | AL113: 0.02981222882 | AM113: 0.02873489514 | AN113: 0.02859191215 | AO113: 0.02854790767 | AP113: 0.02706568919 | AQ113: 0.02636506755 | AR113: 0.02549715679 | AS113: 0.02550727552 | AT113: 0.0277139307 | AU113: 0.0276051982 | AV113: 0.02710637748 | AW113: 0.02589980447 | AX113: 0.02499693497 | AY113: 0.02460768015 | AZ113: 0.02413080186 | BA113: 0.0217135597 | BB113: 0
A114: % of Mortgages in London | B114: 0.2493 | C114: 0.249 | D114: 0.2472 | E114: 0.2389 | F114: 0.2319 | G114: 0.2237 | H114: 0.2179 | I114: 0.2163 | J114: 0.2135 | K114: 0.2127 | L114: 0.2118 | M114: 0.2113 | N114: 0.2111 | O114: 0.2119 | P114: 0.2106 | Q114: 0.2096 | R114: 0.2065 | S114: 0.2063 | T114: 0.2073 | U114: 0.2044 | V114: 0.2035 | W114: 0.2036 | X114: 0.2015 | Y114: 0.2002 | Z114: 0.1991 | AA114: 0.1963 | AB114: 0.1919 | AC114: 0.1918239527 | AD114: 0.1906090177 | AE114: 0.1897470006 | AF114: 0.1895352462 | AG114: 0.1864709196 | AH114: 0.1837740536 | AI114: 0.1818498189 | AJ114: 0.1797584981 | AK114: 0.1769092746 | AL114: 0.178089211 | AM114: 0.1761097644 | AN114: 0.1767161394 | AO114: 0.1740086725 | AP114: 0.1738465204 | AQ114: 0.1755626552 | AR114: 0.1760083392 | AS114: 0.1752994391 | AT114: 0.172413049 | AU114: 0.1726426808 | AV114: 0.1727474865 | AW114: 0.1737369231 | AX114: 0.1701639665 | AY114: 0.1708660847 | AZ114: 0.1708056153 | BA114: 0.1702464177 | BB114: 0
A115: % of Mortgages in the South East | B115: 0.3187 | C115: 0.3176 | D115: 0.3172 | E115: 0.3176 | F115: 0.3198 | G115: 0.3206 | H115: 0.3216 | I115: 0.3218 | J115: 0.324 | K115: 0.3232 | L115: 0.3238 | M115: 0.3243 | N115: 0.3239 | O115: 0.3221 | P115: 0.3221 | Q115: 0.3214 | R115: 0.322 | S115: 0.3201 | T115: 0.3194 | U115: 0.321 | V115: 0.32 | W115: 0.3195 | X115: 0.3195 | Y115: 0.319 | Z115: 0.3178 | AA115: 0.3182 | AB115: 0.3196 | AC115: 0.3182780797 | AD115: 0.3171596237 | AE115: 0.3164062934 | AF115: 0.3151878358 | AG115: 0.3151337474 | AH115: 0.3146204725 | AI115: 0.3142299694 | AJ115: 0.3141932987 | AK115: 0.310149703 | AL115: 0.3091414212 | AM115: 0.309475953 | AN115: 0.3077003777 | AO115: 0.3067654469 | AP115: 0.3040088349 | AQ115: 0.3027271679 | AR115: 0.2990501636 | AS115: 0.2925081949 | AT115: 0.2942703041 | AU115: 0.2933727768 | AV115: 0.2915073807 | AW115: 0.2858027399 | AX115: 0.288565668 | AY115: 0.2857889577 | AZ115: 0.2842083444 | BA115: 0.2809533383 | BB115: 0
A116: % of Owner Occupied Mortgages | B116: 0 | C116: 0 | D116: 0 | E116: 0 | F116: 0 | G116: 0 | H116: 0 | I116: 0 | J116: 0 | K116: 0 | L116: 0 | M116: 0 | N116: 0 | O116: 0 | P116: 0 | Q116: 0 | R116: 0 | S116: 0 | T116: 0 | U116: 0 | V116: 0 | W116: 0 | X116: 0 | Y116: 0 | Z116: 0 | AA116: 0 | AB116: 0 | AC116: 0 | AD116: 0 | AE116: 0 | AF116: 0 | AG116: 0 | AH116: 0 | AI116: 0 | AJ116: 0 | AK116: 0 | AL116: 0 | AM116: 0 | AN116: 0 | AO116: 0 | AP116: 0 | AQ116: 0 | AR116: 0 | AS116: 0 | AT116: 0 | AU116: 0 | AV116: 0 | AW116: 0 | AX116: 0 | AY116: 0 | AZ116: 0 | BA116: 0 | BB116: 0
A117: % of Investment Home Loans - Professional Landlords | B117: 0.2012 | C117: 0.2018 | D117: 0.2002 | E117: 0.2083 | F117: 0.2104 | G117: 0.2138 | H117: 0.214 | I117: 0.2151 | J117: 0.2152 | K117: 0.2143 | L117: 0.2146 | M117: 0.2148 | N117: 0.2152 | O117: 0.2161 | P117: 0.2168 | Q117: 0.2175 | R117: 0.2188 | S117: 0.2186 | T117: 0.2195 | U117: 0.2181 | V117: 0.2177 | W117: 0.2178 | X117: 0.2171 | Y117: 0.2183 | Z117: 0.2183 | AA117: 0.2187 | AB117: 0.2203 | AC117: 0.2197142801 | AD117: 0.2212048464 | AE117: 0.2224286587 | AF117: 0.2226973837 | AG117: 0.2233579184 | AH117: 0.2246117554 | AI117: 0.2228794336 | AJ117: 0.2252054204 | AK117: 0.2224100537 | AL117: 0.2229688163 | AM117: 0.2241001516 | AN117: 0.2247112291 | AO117: 0.2285564228 | AP117: 0.22846461 | AQ117: 0.2295896745 | AR117: 0.2332078801 | AS117: 0.2360318051 | AT117: 0.2352575032 | AU117: 0.2315755201 | AV117: 0.2274642351 | AW117: 0.2258212026 | AX117: 0.2259391431 | AY117: 0.2269317584 | AZ117: 0.227897599 | BA117: 0.2272732354 | BB117: 0
A118: % of Investment Home Loans - Emerging Professional Landlords | B118: 0.7988 | C118: 0.7982 | D118: 0.7998 | E118: 0.7917 | F118: 0.7896 | G118: 0.7862 | H118: 0.786 | I118: 0.7849 | J118: 0.7848 | K118: 0.7857 | L118: 0.7854 | M118: 0.7852 | N118: 0.7848 | O118: 0.7839 | P118: 0.7832 | Q118: 0.7825 | R118: 0.7812 | S118: 0.7814 | T118: 0.7805 | U118: 0.7819 | V118: 0.7823 | W118: 0.7822 | X118: 0.7829 | Y118: 0.7817 | Z118: 0.7817 | AA118: 0.7813 | AB118: 0.7797 | AC118: 0.7802857199 | AD118: 0.7787951536 | AE118: 0.7775713413 | AF118: 0.7773026163 | AG118: 0.7766420816 | AH118: 0.7753882446 | AI118: 0.7771205664 | AJ118: 0.7747945796 | AK118: 0.7775899463 | AL118: 0.7770311837 | AM118: 0.7758998484 | AN118: 0.7752887709 | AO118: 0.7714435772 | AP118: 0.77153539 | AQ118: 0.7704103255 | AR118: 0.7667921199 | AS118: 0.7639681949 | AT118: 0.7647424968 | AU118: 0.7684244799 | AV118: 0.7725357649 | AW118: 0.7741787974 | AX118: 0.7740608569 | AY118: 0.7730682416 | AZ118: 0.772102401 | BA118: 0.7727267646 | BB118: 0
A119: Weighted Average Interest Coverage Ratio (calculated at the origination date) | B119: 1.39 | C119: 1.39 | D119: 1.39 | E119: 1.38 | F119: 1.38 | G119: 1.38 | H119: 1.37 | I119: 1.37 | J119: 1.37 | K119: 1.37 | L119: 1.37 | M119: 1.37 | N119: 1.37 | O119: 1.37 | P119: 1.37 | Q119: 1.37 | R119: 1.37 | S119: 1.37 | T119: 1.37 | U119: 1.38 | V119: 1.38 | W119: 1.38 | X119: 1.37 | Y119: 1.38 | Z119: 1.38 | AA119: 1.38 | AB119: 1.38 | AC119: 1.378132318 | AD119: 1.377160083 | AE119: 1.378139662 | AF119: 1.376111121 | AG119: 1.376389525 | AH119: 1.37701767 | AI119: 1.379592257 | AJ119: 1.380592609 | AK119: 1.377503097 | AL119: 1.376835196 | AM119: 1.379665958 | AN119: 1.378490504 | AO119: 1.379476102 | AP119: 1.383448845 | AQ119: 1.376315876 | AR119: 1.37613179 | AS119: 1.375504437 | AT119: 1.376652619 | AU119: 1.37684009 | AV119: 1.382219165 | AW119: 1.384474394 | AX119: 1.388054918 | AY119: 1.388411734 | AZ119: 1.389325334 | BA119: 1.393706162 | BB119: 0
A120: MTL Lifetime Redemption Rate | B120: 0.0555 | C120: 0.0447 | D120: 0.0477 | E120: 0.1169 | F120: 0.1318 | G120: 0.1331 | H120: 0.1232 | I120: 0.1125 | J120: 0.1042 | K120: 0.0976 | L120: 0.0914 | M120: 0.0867 | N120: 0.0816 | O120: 0.0774 | P120: 0.0743 | Q120: 0.0715 | R120: 0.0697 | S120: 0.0675 | T120: 0.0653 | U120: 0.064 | V120: 0.0626 | W120: 0.0606 | X120: 0.0594 | Y120: 0.0581 | Z120: 0.0578 | AA120: 0.0578 | AB120: 0.0569 | AC120: 0.0563 | AD120: 0.0563 | AE120: 0.0562 | AF120: 0.0559 | AG120: 0.0564 | AH120: 0.0564 | AI120: 0.0565 | AJ120: 0.0568 | AK120: 0.0577 | AL120: 0.0581 | AM120: 0.0588 | AN120: 0.0597 | AO120: 0.0607 | AP120: 0.0616 | AQ120: 0.0618 | AR120: 0.0622 | AS120: 0.0629 | AT120: 0.0637 | AU120: 0.0643 | AV120: 0.0648 | AW120: 0.0653 | AX120: 0.0661 | AY120: 0.0666 | AZ120: 0.0669 | BA120: 0.067 | BB120: 1
A121: Aggregate Potential Redraw Amount | B121: 61403.93 | C121: 60780.41 | D121: 73506.79 | E121: 60226.88 | F121: 17390.82 | G121: 15030.34 | H121: 18514.87 | I121: 8523.14 | J121: 8656.41 | K121: 6461.82 | L121: 6117.14 | M121: 51562.59 | N121: 54336.53 | O121: 93875.65 | P121: 23809.01 | Q121: 30000.32 | R121: 38931.23 | S121: 46632.5 | T121: 54330.46 | U121: 56677 | V121: 56587.5 | W121: 63603.51 | X121: 40291.69 | Y121: 44532.63 | Z121: 0 | AA121: 0 | AB121: 0 | AC121: 0 | AD121: 0 | AE121: 0 | AF121: 0 | AG121: 0 | AH121: 0 | AI121: 0 | AJ121: 0 | AK121: 0 | AL121: 0 | AM121: 0 | AN121: 0 | AO121: 0 | AP121: 0 | AQ121: 0 | AR121: 0 | AS121: 0 | AT121: 0 | AU121: 0 | AV121: 0 | AW121: 0 | AX121: 0 | AY121: 0 | AZ121: 0 | BA121: 0 | BB121: 0
A122: Number of Properties in Possession | B122: 0 | C122: 0 | D122: 0 | E122: 0 | F122: 0 | G122: 1 | H122: 1 | I122: 0 | J122: 0 | K122: 0 | L122: 0 | M122: 0 | N122: 0 | O122: 0 | P122: 0 | Q122: 0 | R122: 0 | S122: 0 | T122: 1 | U122: 1 | V122: 1 | W122: 1 | X122: 0 | Y122: 0 | Z122: 0 | AA122: 0 | AB122: 0 | AC122: 0 | AD122: 0 | AE122: 0 | AF122: 0 | AG122: 0 | AH122: 0 | AI122: 0 | AJ122: 0 | AK122: 0 | AL122: 0 | AM122: 0 | AN122: 0 | AO122: 0 | AP122: 0 | AQ122: 0 | AR122: 0 | AS122: 0 | AT122: 0 | AU122: 0 | AV122: 0 | AW122: 0 | AX122: 0 | AY122: 0 | AZ122: 0 | BA122: 0 | BB122: 0
A123: Appointment of a Receiver of Rent | B123: 1 | C123: 14 | D123: 13 | E123: 23 | F123: 47 | G123: 50 | H123: 60 | I123: 59 | J123: 58 | K123: 53 | L123: 53 | M123: 52 | N123: 51 | O123: 53 | P123: 51 | Q123: 61 | R123: 63 | S123: 59 | T123: 58 | U123: 56 | V123: 53 | W123: 51 | X123: 50 | Y123: 49 | Z123: 48 | AA123: 48 | AB123: 44 | AC123: 42 | AD123: 41 | AE123: 45 | AF123: 45 | AG123: 39 | AH123: 38 | AI123: 41 | AJ123: 42 | AK123: 40 | AL123: 38 | AM123: 35 | AN123: 32 | AO123: 33 | AP123: 32 | AQ123: 30 | AR123: 31 | AS123: 31 | AT123: 31 | AU123: 30 | AV123: 31 | AW123: 32 | AX123: 32 | AY123: 30 | AZ123: 30 | BA123: 30 | BB123: 0
A124: MTL Quarterly Losses | B124: 0 | C124: 0 | D124: 0 | E124: 0 | F124: 14 | G124: 104 | H124: 1 | I124: 92 | J124: 54 | K124: 153 | L124: 6 | M124: 82 | N124: 87 | O124: 43 | P124: 65 | Q124: 168 | R124: 1 | S124: 1 | T124: 35 | U124: 360 | V124: 158 | W124: 0 | X124: 358 | Y124: 35 | Z124: 102 | AA124: -5 | AB124: 76 | AC124: 45 | AD124: 20 | AE124: 103 | AF124: -9 | AG124: 209 | AH124: -5 | AI124: 14 | AJ124: -62 | AK124: -266 | AL124: -50 | AM124: 98 | AN124: 65 | AO124: 10 | AP124: -13 | AQ124: 21 | AR124: -14 | AS124: -6 | AT124: 40 | AU124: 35 | AV124: 42 | AW124: 24 | AX124: 10 | AY124: 9 | AZ124: 2 | BA124: -2 | BB124: 0
A125: Arrears excluding Receiver of Rent and Possession Cases
A126: Performing Loans | B126: 0.9965 | C126: 0.9946 | D126: 0.9914 | E126: 0.9852 | F126: 0.9828 | G126: 0.981 | H126: 0.9855 | I126: 0.9856 | J126: 0.9949 | K126: 0.9933 | L126: 0.9951 | M126: 0.988 | N126: 0.9925 | O126: 0.9936 | P126: 0.9921 | Q126: 0.9946 | R126: 0.9949 | S126: 0.9913 | T126: 0.9963 | U126: 0.9948 | V126: 0.997 | W126: 0.9953 | X126: 0.9964 | Y126: 0.9979 | Z126: 0.9981 | AA126: 0.9979 | AB126: 0.9993 | AC126: 0.9970303864 | AD126: 0.9982215328 | AE126: 0.9974880855 | AF126: 0.9984619256 | AG126: 0.9980179563 | AH126: 0.9972708122 | AI126: 0.997581547 | AJ126: 0.9984470742 | AK126: 0.9968247075 | AL126: 0.9973432462 | AM126: 0.9969637676 | AN126: 0.9952661507 | AO126: 0.9975790143 | AP126: 0.9996701528 | AQ126: 0.9989167652 | AR126: 0.9979989417 | AS126: 0.9974645893 | AT126: 0.9972214207 | AU126: 0.9956721545 | AV126: 0.9961027416 | AW126: 0.9917095069 | AX126: 0.995357165 | AY126: 0.9944362087 | AZ126: 0.9932197267 | BA126: 0.9957079348 | BB126: 0
A127: >1 to 2 months arrears | B127: 0.0017 | C127: 0.0044 | D127: 0.007 | E127: 0.0081 | F127: 0.0086 | G127: 0.006 | H127: 0.0048 | I127: 0.0097 | J127: 0.0035 | K127: 0.0047 | L127: 0.0033 | M127: 0.0094 | N127: 0.0034 | O127: 0.0057 | P127: 0.0076 | Q127: 0.0032 | R127: 0.004 | S127: 0.0086 | T127: 0.0032 | U127: 0.0052 | V127: 0.0027 | W127: 0.0037 | X127: 0.0013 | Y127: 0.0021 | Z127: 0.001 | AA127: 0.0014 | AB127: 0 | AC127: 0.002969613641 | AD127: 0.001095497748 | AE127: 0.001976727662 | AF127: 0.001538074369 | AG127: 0.001982043678 | AH127: 0.002729187759 | AI127: 0.001626956224 | AJ127: 0.001552925781 | AK127: 0.002039849037 | AL127: 0.002394882767 | AM127: 0.002732445279 | AN127: 0.00355089075 | AO127: 0.002139596499 | AP127: 0.0003298472327 | AQ127: 0.0007479795158 | AR127: 0.001658598892 | AS127: 0.002228182008 | AT127: 0.001295208848 | AU127: 0.002808703334 | AV127: 0.002713672028 | AW127: 0.005872994182 | AX127: 0.004017632109 | AY127: 0.003297489783 | AZ127: 0.004099139865 | BA127: 0.00244648097 | BB127: 0
A128: >2 to 3 months arrears | B128: 0.0009 | C128: 0.001 | D128: 0.0014 | E128: 0.006 | F128: 0.0059 | G128: 0.0076 | H128: 0.0046 | I128: 0.0024 | J128: 0.0005 | K128: 0.0017 | L128: 0.0005 | M128: 0.0015 | N128: 0.0038 | O128: 0.0004 | P128: 0 | Q128: 0.0022 | R128: 0.0009 | S128: 0 | T128: 0.0005 | U128: 0 | V128: 0.0003 | W128: 0 | X128: 0.0006 | Y128: 0 | Z128: 0.0007 | AA128: 0 | AB128: 0.0007 | AC128: 0 | AD128: 0.000682969436 | AE128: 0.000535186793 | AF128: 0 | AG128: 0 | AH128: 0 | AI128: 0 | AJ128: 0 | AK128: 0.001135443471 | AL128: 0.000261871025 | AM128: 0.0003037871412 | AN128: 0.001182958543 | AO128: 0.0002813892347 | AP128: 0 | AQ128: 0.0003352552584 | AR128: 0.0003424594488 | AS128: 0.0003072286555 | AT128: 0.001483370495 | AU128: 0.001519142125 | AV128: 0.0005900009499 | AW128: 0.001200077922 | AX128: 0 | AY128: 0.002266301492 | AZ128: 0.002365253721 | BA128: 0 | BB128: 0
A129: >3 months arrears | B129: 0.0009 | C129: 0 | D129: 0.0002 | E129: 0.0007 | F129: 0.0027 | G129: 0.0054 | H129: 0.0051 | I129: 0.0023 | J129: 0.0011 | K129: 0.0003 | L129: 0.0011 | M129: 0.0011 | N129: 0.0003 | O129: 0.0003 | P129: 0.0003 | Q129: 0 | R129: 0.0002 | S129: 0.0001 | T129: 0 | U129: 0 | V129: 0 | W129: 0.001 | X129: 0.0017 | Y129: 0 | Z129: 0.0002 | AA129: 0.0007 | AB129: 0 | AC129: 0 | AD129: 0 | AE129: 0 | AF129: 0 | AG129: 0 | AH129: 0 | AI129: 0.0007914967361 | AJ129: 0 | AK129: 0 | AL129: 0 | AM129: 0 | AN129: 0 | AO129: 0 | AP129: 0 | AQ129: 0 | AR129: 0 | AS129: 0 | AT129: 0 | AU129: 0 | AV129: 0.0005935853944 | AW129: 0.001217421012 | AX129: 0.000625202897 | AY129: 0 | AZ129: 0.0003158797498 | BA129: 0.001845584265 | BB129: 0
A130: Total | B130: =SUM(B126:B129) -> 1 | C130: 1 | D130: 1 | E130: 1 | F130: 1 | G130: 1 | H130: 1 | I130: 1 | J130: 1 | K130: 1 | L130: 1 | M130: 1 | N130: 1 | O130: 1 | P130: 1 | Q130: 1 | R130: 1 | S130: =SUM(S126:S129) -> 1 | T130: 1 | U130: 1 | V130: 1 | W130: 1 | X130: 1 | Y130: =SUM(Y126:Y129) -> 1 | Z130: =SUM(Z126:Z129) -> 1 | AA130: =SUM(AA126:AA129) -> 1 | AB130: =SUM(AB126:AB129) -> 1 | AC130: =SUM(AC126:AC129) -> 1 | AD130: 1 | AE130: 1 | AF130: 1 | AG130: 1 | AH130: 1 | AI130: 1 | AJ130: 1 | AK130: 1 | AL130: 1 | AM130: 1 | AN130: 1 | AO130: 1 | AP130: 1 | AQ130: 1 | AR130: 1 | AS130: 1 | AT130: 1 | AU130: 1 | AV130: 1 | AW130: 1 | AX130: 1 | AY130: 1 | AZ130: 1 | BA130: 1 | BB130: =SUM(BB126:BB129) -> 0

Sheet Graphs
O2: PARAGON MORTGAGES (NO.15) PLC
